{"text_format":"1","workbook":"xlsx","n_sheets":3,"sheets":["入力ﾌｫｰﾑ","請求書","マニュアル"],"not_rendered":{"charts":0,"images":0,"macros":1,"external_links":0,"defined_names":0,"comments":0,"pivot_tables":0},"unopened":[],"bounds":{"document_bytes":16777216,"sheet_cells":100000,"rows_first":2000,"rows_last":500,"rows_between":2000,"halvings":0,"cell_chars":16384,"cell_head_chars":4096},"cells_cut":0,"cells_raw":0,"read":"whole","date_system":"1900"}

{"sheet":"入力ﾌｫｰﾑ","index":0,"n_rows":45,"n_cols":145,"rows_kept":45,"cut":false,"hidden":false,"merged":[[24,145,25,145],[26,100,27,103],[26,104,27,114],[26,115,27,144],[26,145,27,145],[19,100,21,103],[19,104,21,114],[19,115,19,134],[19,136,19,141],[19,142,19,143],[20,115,21,144],[20,145,21,145],[22,100,23,103],[22,104,23,114],[22,115,23,144],[22,145,23,145],[24,100,25,103],[20,73,21,80],[22,73,23,80],[24,73,25,80],[26,58,27,72],[26,73,27,80],[24,38,25,47],[24,104,25,114],[24,115,25,116],[24,117,25,144],[16,1,17,4],[18,1,19,4],[20,1,21,4],[22,1,23,4],[24,1,25,4],[12,5,13,37],[14,5,15,37],[16,5,17,37],[18,5,19,37],[20,5,21,37],[22,5,23,37],[24,5,25,37],[18,48,19,57],[20,48,21,57],[22,48,23,57],[24,48,25,57],[16,58,17,72],[18,58,19,72],[20,58,21,72],[22,58,23,72],[24,58,25,72],[16,83,17,97],[18,83,19,97],[15,145,16,145],[14,81,15,82],[14,83,15,97],[15,104,16,114],[13,145,14,145],[13,73,13,82],[14,73,15,80],[18,73,19,80],[13,100,18,103],[13,104,14,114],[17,115,18,144],[17,104,18,114],[18,81,19,82],[16,73,17,80],[13,115,14,144],[17,145,18,145],[8,1,9,16],[8,17,9,52],[8,54,9,58],[8,59,9,97],[12,38,13,47],[14,38,15,47],[12,1,13,4],[14,1,15,4],[12,48,13,57],[14,48,15,57],[12,58,13,72],[14,58,15,72],[10,17,11,27],[10,28,11,71],[10,12,11,16],[10,1,11,11],[9,100,10,119],[9,120,10,135],[11,100,12,103],[11,104,12,107],[11,108,12,111],[11,112,12,115],[11,116,12,119],[11,120,12,123],[11,124,12,127],[11,128,12,131],[11,132,12,135],[6,17,7,52],[6,54,7,58],[6,59,7,94],[6,95,7,97],[3,1,3,37],[3,54,3,58],[3,59,3,61],[3,62,3,64],[3,65,3,67],[3,68,3,70],[3,71,3,73],[3,74,3,76],[3,77,3,79],[3,80,3,82],[3,83,3,85],[3,86,3,88],[3,89,3,91],[3,92,3,94],[3,95,3,97],[0,1,1,37],[0,39,1,42],[0,53,1,97],[4,1,5,16],[4,17,5,52],[4,54,5,58],[4,59,5,97],[15,115,16,144],[3,100,4,105],[3,106,4,117],[3,118,4,119],[3,120,4,125],[3,126,4,127],[3,128,4,133],[3,134,4,135],[7,100,8,106],[7,107,8,109],[7,110,8,112],[7,113,8,115],[7,116,8,118],[7,119,8,121],[7,122,8,124],[7,125,8,127],[6,1,7,16],[30,5,31,37],[30,38,31,47],[30,48,31,57],[30,58,31,72],[30,73,31,80],[30,81,31,82],[30,83,31,97],[28,1,29,4],[26,81,27,82],[26,83,27,97],[30,1,31,4],[26,1,27,4],[26,5,27,37],[26,38,27,47],[26,48,27,57],[28,5,29,37],[28,38,29,47],[28,48,29,57],[28,58,29,72],[28,73,29,80],[32,58,33,72],[32,73,33,80],[32,81,33,82],[11,72,11,84],[12,83,13,97],[10,72,10,84],[10,85,11,97],[16,38,17,47],[18,38,19,47],[20,38,21,47],[22,38,23,47],[22,83,23,97],[24,83,25,97],[22,81,23,82],[24,81,25,82],[20,81,21,82],[20,83,21,97],[16,48,17,57],[32,83,33,97],[28,81,29,82],[28,83,29,97],[32,1,33,57],[12,73,12,82],[16,81,17,82]]}
[null,"エヌテックサービス株式会社",null,null,null,null,null,null,null,null,null,null,null,null,null,null,null,null,null,null,null,null,null,null,null,null,null,null,null,null,null,null,null,null,null,null,null,null,null,"御中",null,null,null,null,null,null,null,null,null,null,null,null,null,"請求書(外注)"]
[]
[]
[null,"下記のとおり請求致します。",null,null,null,null,null,null,null,null,null,null,null,null,null,null,null,null,null,null,null,null,null,null,null,null,null,null,null,null,null,null,null,null,null,null,null,null,null,null,null,null,null,null,null,null,null,null,null,null,null,null,null,null,"T",null,null,null,null,null,null,null,null,null,null,null,null,null,null,null,null,null,null,null,null,null,null,null,null,null,null,null,null,null,null,null,null,null,null,null,null,null,null,null,null,null,null,null,null,null,"請求日\n(西暦)",null,null,null,null,null,null,null,null,null,null,null,null,null,null,null,null,null,"年",null,null,null,null,null,null,null,"月",null,null,null,null,null,null,null,"日"]
[null,"今回請求金額",null,null,null,null,null,null,null,null,null,null,null,null,null,null,null,{"$f":"IFERROR(R7+R9,\"\")","v":""},null,null,null,null,null,null,null,null,null,null,null,null,null,null,null,null,null,null,null,null,null,null,null,null,null,null,null,null,null,null,null,null,null,null,null,null,"住所"]
[]
[null,"Ｄ当月請求額",null,null,null,null,null,null,null,null,null,null,null,null,null,null,null,{"$f":"IF(DL27=0,\"\",DL27)","v":""},null,null,null,null,null,null,null,null,null,null,null,null,null,null,null,null,null,null,null,null,null,null,null,null,null,null,null,null,null,null,null,null,null,null,null,null,"社名"]
[null,null,null,null,null,null,null,null,null,null,null,null,null,null,null,null,null,null,null,null,null,null,null,null,null,null,null,null,null,null,null,null,null,null,null,null,null,null,null,null,null,null,null,null,null,null,null,null,null,null,null,null,null,null,null,null,null,null,null,null,null,null,null,null,null,null,null,null,null,null,null,null,null,null,null,null,null,null,null,null,null,null,null,null,null,null,null,null,null,null,null,null,null,null,null,null,null,null,null,null,"工事№"]
[null,"消費税",null,null,null,null,null,null,null,null,null,null,null,null,null,null,null,{"$f":"IFERROR(ROUNDDOWN(R7*M11,0),\"\")","v":""},null,null,null,null,null,null,null,null,null,null,null,null,null,null,null,null,null,null,null,null,null,null,null,null,null,null,null,null,null,null,null,null,null,null,null,null,"TEL"]
[null,null,null,null,null,null,null,null,null,null,null,null,null,null,null,null,null,null,null,null,null,null,null,null,null,null,null,null,null,null,null,null,null,null,null,null,null,null,null,null,null,null,null,null,null,null,null,null,null,null,null,null,null,null,null,null,null,null,null,null,null,null,null,null,null,null,null,null,null,null,null,null,null,null,null,null,null,null,null,null,null,null,null,null,null,null,null,null,null,null,null,null,null,null,null,null,null,null,null,null,"取引先コード",null,null,null,null,null,null,null,null,null,null,null,null,null,null,null,null,null,null,null,"注文№"]
[null,"消費税率",null,null,null,null,null,null,null,null,null,null,null,null,null,null,null,"工事名称",null,null,null,null,null,null,null,null,null,null,null,null,null,null,null,null,null,null,null,null,null,null,null,null,null,null,null,null,null,null,null,null,null,null,null,null,null,null,null,null,null,null,null,null,null,null,null,null,null,null,null,null,null,null,"ｴﾇﾃｯｸｻｰﾋﾞｽ㈱"]
[null,null,null,null,null,null,null,null,null,null,null,null,null,null,null,null,null,null,null,null,null,null,null,null,null,null,null,null,null,null,null,null,null,null,null,null,null,null,null,null,null,null,null,null,null,null,null,null,null,null,null,null,null,null,null,null,null,null,null,null,null,null,null,null,null,null,null,null,null,null,null,null,"現場担当者名"]
[null,"月日",null,null,null,"工事内容",null,null,null,null,null,null,null,null,null,null,null,null,null,null,null,null,null,null,null,null,null,null,null,null,null,null,null,null,null,null,null,null,"数量",null,null,null,null,null,null,null,null,null,"単価",null,null,null,null,null,null,null,null,null,"金　額",null,null,null,null,null,null,null,null,null,null,null,null,null,null,"出来高",null,null,null,null,null,null,null,null,null,"出来高金額"]
[null,null,null,null,null,null,null,null,null,null,null,null,null,null,null,null,null,null,null,null,null,null,null,null,null,null,null,null,null,null,null,null,null,null,null,null,null,null,null,null,null,null,null,null,null,null,null,null,null,null,null,null,null,null,null,null,null,null,null,null,null,null,null,null,null,null,null,null,null,null,null,null,null,"数量％",null,null,null,null,null,null,null,null,null,null,null,null,null,null,null,null,null,null,null,null,null,null,null,null,null,null,"工事金額",null,null,null,"注文金額"]
[null,null,null,null,null,null,null,null,null,null,null,null,null,null,null,null,null,null,null,null,null,null,null,null,null,null,null,null,null,null,null,null,null,null,null,null,null,null,null,null,null,null,null,null,null,null,null,null,null,null,null,null,null,null,null,null,null,null,null,null,null,null,null,null,null,null,null,null,null,null,null,null,null,null,null,null,null,null,null,null,null,"％"]
[null,null,null,null,null,null,null,null,null,null,null,null,null,null,null,null,null,null,null,null,null,null,null,null,null,null,null,null,null,null,null,null,null,null,null,null,null,null,null,null,null,null,null,null,null,null,null,null,null,null,null,null,null,null,null,null,null,null,null,null,null,null,null,null,null,null,null,null,null,null,null,null,null,null,null,null,null,null,null,null,null,null,null,null,null,null,null,null,null,null,null,null,null,null,null,null,null,null,null,null,null,null,null,null,"変更金額"]
[null,null,null,null,null,null,null,null,null,null,null,null,null,null,null,null,null,null,null,null,null,null,null,null,null,null,null,null,null,null,null,null,null,null,null,null,null,null,null,null,null,null,null,null,null,null,null,null,null,null,null,null,null,null,null,null,null,null,null,null,null,null,null,null,null,null,null,null,null,null,null,null,null,null,null,null,null,null,null,null,null,"％"]
[null,null,null,null,null,null,null,null,null,null,null,null,null,null,null,null,null,null,null,null,null,null,null,null,null,null,null,null,null,null,null,null,null,null,null,null,null,null,null,null,null,null,null,null,null,null,null,null,null,null,null,null,null,null,null,null,null,null,null,null,null,null,null,null,null,null,null,null,null,null,null,null,null,null,null,null,null,null,null,null,null,null,null,null,null,null,null,null,null,null,null,null,null,null,null,null,null,null,null,null,null,null,null,null,"現在金額"]
[null,null,null,null,null,null,null,null,null,null,null,null,null,null,null,null,null,null,null,null,null,null,null,null,null,null,null,null,null,null,null,null,null,null,null,null,null,null,null,null,null,null,null,null,null,null,null,null,null,null,null,null,null,null,null,null,null,null,null,null,null,null,null,null,null,null,null,null,null,null,null,null,null,null,null,null,null,null,null,null,null,"％"]
[null,null,null,null,null,null,null,null,null,null,null,null,null,null,null,null,null,null,null,null,null,null,null,null,null,null,null,null,null,null,null,null,null,null,null,null,null,null,null,null,null,null,null,null,null,null,null,null,null,null,null,null,null,null,null,null,null,null,null,null,null,null,null,null,null,null,null,null,null,null,null,null,null,null,null,null,null,null,null,null,null,null,null,null,null,null,null,null,null,null,null,null,null,null,null,null,null,null,null,null,"Ａ.",null,null,null,"累計\n出来高金額",null,null,null,null,null,null,null,null,null,null,null,null,null,null,null,null,null,null,null,null,null,null,null,null,null,null,null,null,null,null,"(",{"$f":"BV33","v":""},null,null,null,null,null,"％",null,")"]
[null,null,null,null,null,null,null,null,null,null,null,null,null,null,null,null,null,null,null,null,null,null,null,null,null,null,null,null,null,null,null,null,null,null,null,null,null,null,null,null,null,null,null,null,null,null,null,null,null,null,null,null,null,null,null,null,null,null,null,null,null,null,null,null,null,null,null,null,null,null,null,null,null,null,null,null,null,null,null,null,null,"％",null,null,null,null,null,null,null,null,null,null,null,null,null,null,null,null,null,null,null,null,null,null,null,null,null,null,null,null,null,null,null,null,null,{"$f":"CF33","v":""}]
[]
[null,null,null,null,null,null,null,null,null,null,null,null,null,null,null,null,null,null,null,null,null,null,null,null,null,null,null,null,null,null,null,null,null,null,null,null,null,null,null,null,null,null,null,null,null,null,null,null,null,null,null,null,null,null,null,null,null,null,null,null,null,null,null,null,null,null,null,null,null,null,null,null,null,null,null,null,null,null,null,null,null,"％",null,null,null,null,null,null,null,null,null,null,null,null,null,null,null,null,null,null,"Ｂ.",null,null,null,"A×90％",null,null,null,null,null,null,null,null,null,null,{"$f":"IFERROR(IF(BV33=0,\"\",IF(BV33=100,\"\",(IF(BV33>0,ROUNDDOWN(CF33*90%,-3))))),\"\")","v":""}]
[]
[null,null,null,null,null,null,null,null,null,null,null,null,null,null,null,null,null,null,null,null,null,null,null,null,null,null,null,null,null,null,null,null,null,null,null,null,null,null,null,null,null,null,null,null,null,null,null,null,null,null,null,null,null,null,null,null,null,null,null,null,null,null,null,null,null,null,null,null,null,null,null,null,null,null,null,null,null,null,null,null,null,"％",null,null,null,null,null,null,null,null,null,null,null,null,null,null,null,null,null,null,"Ｃ.",null,null,null,"既受入金額",null,null,null,null,null,null,null,null,null,null,"△"]
[]
[null,null,null,null,null,null,null,null,null,null,null,null,null,null,null,null,null,null,null,null,null,null,null,null,null,null,null,null,null,null,null,null,null,null,null,null,null,null,null,null,null,null,null,null,null,null,null,null,null,null,null,null,null,null,null,null,null,null,null,null,null,null,null,null,null,null,null,null,null,null,null,null,null,null,null,null,null,null,null,null,null,"％",null,null,null,null,null,null,null,null,null,null,null,null,null,null,null,null,null,null,"Ｄ.",null,null,null,"当月請求額"]
[]
[null,null,null,null,null,null,null,null,null,null,null,null,null,null,null,null,null,null,null,null,null,null,null,null,null,null,null,null,null,null,null,null,null,null,null,null,null,null,null,null,null,null,null,null,null,null,null,null,null,null,null,null,null,null,null,null,null,null,null,null,null,null,null,null,null,null,null,null,null,null,null,null,null,null,null,null,null,null,null,null,null,"％"]
[]
[null,null,null,null,null,null,null,null,null,null,null,null,null,null,null,null,null,null,null,null,null,null,null,null,null,null,null,null,null,null,null,null,null,null,null,null,null,null,null,null,null,null,null,null,null,null,null,null,null,null,null,null,null,null,null,null,null,null,null,null,null,null,null,null,null,null,null,null,null,null,null,null,null,null,null,null,null,null,null,null,null,"％"]
[]
[null,"計",null,null,null,null,null,null,null,null,null,null,null,null,null,null,null,null,null,null,null,null,null,null,null,null,null,null,null,null,null,null,null,null,null,null,null,null,null,null,null,null,null,null,null,null,null,null,null,null,null,null,null,null,null,null,null,null,{"$f":"IF(SUM(BG15:BG31)=0,\"\",SUM(BG15:BG31))","v":""},null,null,null,null,null,null,null,null,null,null,null,null,null,null,{"$f":"IFERROR((CF33/BG33*100),\"\")","v":""},null,null,null,null,null,null,null,"％",null,{"$f":"IF(SUM(CF15:CF31)=0,\"\",SUM(CF15:CF31))","v":""}]
[]
[null,"請求書の記入について",null,null,null,null,null,null,null,null,null,null,null,null,null,null,null,null,null,null,null,null,"ご不明な点は、弊社担当者とお打ち合わせの上、入力又は記入してください。"]
[null,"1.",null,"この請求書は工事ごとに、注文書別に記入して提出してください。(工事№・工事名は注文書を参照、又は弊社担当者へお問い合わせください。)"]
[null,"2.",null,"毎月、月末締めにて翌月第3営業日までに、弊社事務所または現場担当者へ提出してください。提出が遅れた場合は、次月のお支払いとなります。"]
[null,null,null,"(郵送の場合も同様にてお願いします。)"]
[null,"3.",null,"請求書は、電子入力または手書きとし、原本1部を弊社に提出してください。(①提出用での提出をお願いします。)"]
[null,"4.",null,"工事内容他、入力フォームの白欄は記入をお願いします。不明瞭な箇所がある場合は支払の保留、又は請求書の再提出をお願いする場合があります。"]
[null,null,null,"なお、注文№は、請求対象について注文書を受領している場合のみ記入してください。"]
[null,"5.",null,"手書きの場合、黒ボールペンを使用し枠内からはみ出さないよう鮮明に記入してください。熱で消えるタイプのボールペンは使用しないでください。"]
[null,"6.",null,"当月請求金額、出来高金額、工事金額等は税抜金額で記入し、消費税額を計算し消費税欄に記入してください。消費税額の円未満は切り捨てにて計算してください。"]
[null,"7.",null,"中間払い時は、累計出来高金額×90％、1,000円未満切り捨てにて計算してください。"]
[null,"8.",null,"出来高内訳書(弊社書式)は、2部添付してください。尚、未契約の小工事は、工事内訳を工事内容欄に記入してください。"]

{"sheet":"請求書","index":1,"n_rows":88,"n_cols":145,"rows_kept":88,"cut":false,"hidden":false,"merged":[[34,1,34,35],[22,58,23,72],[24,58,25,72],[26,58,27,72],[22,38,23,47],[24,38,25,47],[69,58,70,72],[69,73,70,80],[43,39,44,42],[63,73,64,80],[65,38,66,47],[65,48,66,57],[65,58,66,72],[65,73,66,80],[67,38,68,47],[67,48,68,57],[67,58,68,72],[67,73,68,80],[57,38,58,47],[57,48,58,57],[57,58,58,72],[32,58,33,72],[32,73,33,80],[59,5,60,37],[59,38,60,47],[59,48,60,57],[59,58,60,72],[59,73,60,80],[43,1,44,37],[57,1,58,4],[57,5,58,37],[59,1,60,4],[46,1,46,37],[46,54,46,58],[46,59,46,61],[46,62,46,64],[46,65,46,67],[46,68,46,70],[46,71,46,73],[46,74,46,76],[46,77,46,79],[49,49,50,52],[49,54,50,58],[49,59,50,94],[49,37,50,40],[49,41,50,44],[49,45,50,48],[49,25,50,28],[18,48,19,57],[20,48,21,57],[22,48,23,57],[24,48,25,57],[12,1,13,4],[14,1,15,4],[16,1,17,4],[18,1,19,4],[20,1,21,4],[22,1,23,4],[24,1,25,4],[12,5,13,37],[14,5,15,37],[16,5,17,37],[18,5,19,37],[20,5,21,37],[22,5,23,37],[24,5,25,37],[18,38,19,47],[20,38,21,47],[12,38,13,47],[22,73,23,80],[24,73,25,80],[26,73,27,80],[20,83,21,97],[18,81,19,82],[17,104,18,114],[17,145,18,145],[16,81,17,82],[16,83,17,97],[18,83,19,97],[15,145,16,145],[26,81,27,82],[26,83,27,97],[22,83,23,97],[24,83,25,97],[22,145,23,145],[24,145,25,145],[26,145,27,145],[22,81,23,82],[24,81,25,82],[13,100,18,103],[22,100,23,103],[22,104,23,114],[22,115,23,144],[18,73,19,80],[20,73,21,80],[20,81,21,82],[12,58,13,72],[13,104,14,114],[19,100,21,103],[19,104,21,114],[19,115,19,133],[18,58,19,72],[20,58,21,72],[15,115,16,144],[17,115,18,144],[10,1,11,11],[10,12,11,16],[10,17,11,30],[14,38,15,47],[16,38,17,47],[12,83,13,97],[14,81,15,82],[14,83,15,97],[15,104,16,114],[12,73,12,82],[14,58,15,72],[16,58,17,72],[13,73,13,82],[14,73,15,80],[16,73,17,80],[12,48,13,57],[14,48,15,57],[16,48,17,57],[11,100,12,103],[11,104,12,107],[11,108,12,111],[11,112,12,115],[13,115,14,144],[6,49,7,52],[6,54,7,58],[6,59,7,94],[8,59,9,97],[7,125,8,127],[7,134,8,136],[9,100,10,119],[9,120,10,135],[9,136,10,145],[7,137,8,139],[7,140,8,142],[7,143,8,145],[10,31,11,71],[10,72,10,84],[10,85,11,97],[8,33,9,36],[8,37,9,40],[8,41,9,44],[8,45,9,48],[8,49,9,52],[8,54,9,58],[11,72,11,84],[11,116,12,119],[11,120,12,123],[4,1,5,16],[4,17,5,20],[6,95,7,97],[8,1,9,16],[8,17,9,20],[8,21,9,24],[8,25,9,28],[4,21,5,24],[4,25,5,28],[4,29,5,32],[4,33,5,36],[6,1,7,16],[6,17,7,20],[6,21,7,24],[6,25,7,28],[6,29,7,32],[6,33,7,36],[4,37,5,40],[4,41,5,44],[4,45,5,48],[8,29,9,32],[6,37,7,40],[6,41,7,44],[6,45,7,48],[3,80,3,82],[3,83,3,85],[3,86,3,88],[3,89,3,91],[3,92,3,94],[0,1,1,37],[0,39,1,42],[0,53,1,97],[3,95,3,97],[3,1,3,37],[3,54,3,58],[3,59,3,61],[3,62,3,64],[3,65,3,67],[3,68,3,70],[3,71,3,73],[3,74,3,76],[3,77,3,79],[4,49,5,52],[4,54,5,58],[4,59,5,97],[51,1,52,16],[51,17,52,20],[51,21,52,24],[53,72,53,84],[53,1,54,11],[53,12,54,16],[47,49,48,52],[47,54,48,58],[47,59,48,97],[47,1,48,16],[47,17,48,20],[47,21,48,24],[47,25,48,28],[47,29,48,32],[47,33,48,36],[47,37,48,40],[47,41,48,44],[47,45,48,48],[49,1,50,16],[49,17,50,20],[49,21,50,24],[49,29,50,32],[49,33,50,36],[53,17,54,30],[53,31,54,71],[55,1,56,4],[55,5,56,37],[55,38,56,47],[55,48,56,57],[55,58,56,72],[51,25,52,28],[51,29,52,32],[51,33,52,36],[51,37,52,40],[51,41,52,44],[51,45,52,48],[51,49,52,52],[51,54,52,58],[51,59,52,97],[49,95,50,97],[57,73,58,80],[54,104,55,107],[54,108,55,111],[54,112,55,115],[54,116,55,119],[54,120,55,123],[54,124,55,127],[54,128,55,131],[52,100,53,119],[52,120,53,135],[55,83,56,97],[50,119,51,121],[50,122,51,124],[53,85,54,97],[54,72,54,84],[50,107,51,109],[50,110,51,112],[55,73,55,82],[56,73,56,82],[63,83,64,97],[61,81,62,82],[61,83,62,97],[56,115,57,144],[57,81,58,82],[57,83,58,97],[58,104,59,114],[58,115,59,144],[59,81,60,82],[59,83,60,97],[60,104,61,114],[56,100,61,103],[56,104,57,114],[60,115,61,144],[62,100,64,103],[62,104,64,114],[62,115,62,133],[62,135,62,141],[62,142,62,143],[63,115,64,144],[61,1,62,4],[61,5,62,37],[61,38,62,47],[61,48,62,57],[61,58,62,72],[61,73,62,80],[63,1,64,4],[63,5,64,37],[63,38,64,47],[63,48,64,57],[63,58,64,72],[65,81,66,82],[65,83,66,97],[67,81,68,82],[67,83,68,97],[65,1,66,4],[65,5,66,37],[67,1,68,4],[67,5,68,37],[73,83,74,97],[71,58,72,72],[71,73,72,80],[71,81,72,82],[67,100,68,103],[67,104,68,114],[67,115,68,116],[67,117,68,144],[67,145,68,145],[71,83,72,97],[73,1,74,4],[69,100,70,103],[69,104,70,114],[69,115,70,144],[69,145,70,145],[69,81,70,82],[69,83,70,97],[71,38,72,47],[71,48,72,57],[7,100,8,106],[35,139,36,142],[35,135,36,138],[35,131,36,134],[63,145,64,145],[56,145,57,145],[58,145,59,145],[60,145,61,145],[65,100,66,103],[65,104,66,114],[65,115,66,144],[65,145,66,145],[13,145,14,145],[11,124,12,127],[11,128,12,131],[11,132,12,135],[11,136,12,145],[50,113,51,115],[50,116,51,118],[54,132,55,135],[54,100,55,103],[50,100,51,106],[26,100,27,103],[26,104,27,114],[3,100,4,105],[3,106,4,117],[3,118,4,119],[3,120,4,125],[3,126,4,127],[3,128,4,133],[3,134,4,135],[4,137,4,145],[50,125,51,127],[7,113,8,115],[7,116,8,118],[7,119,8,121],[7,122,8,124],[7,128,8,133],[7,107,8,109],[7,110,8,112],[20,145,21,145],[19,135,19,141],[29,131,30,145],[29,106,30,130],[24,100,25,103],[24,104,25,114],[24,115,25,116],[24,117,25,144],[39,122,42,129],[38,122,38,129],[35,143,36,144],[31,106,32,130],[31,143,32,145],[43,54,44,97],[46,100,47,105],[46,106,47,117],[46,118,47,119],[46,120,47,125],[46,126,47,127],[46,128,47,133],[46,134,47,135],[47,137,47,145],[46,80,46,82],[46,83,46,85],[46,86,46,88],[46,89,46,91],[46,92,46,94],[46,95,46,97],[32,81,33,82],[32,83,33,97],[32,1,33,57],[35,1,42,35],[30,81,31,82],[30,83,31,97],[35,44,36,46],[35,47,36,49],[35,41,36,43],[26,115,27,144],[19,142,19,143],[20,115,21,144],[39,130,42,137],[39,138,42,145],[35,129,36,130],[31,131,32,133],[31,134,32,136],[31,137,32,139],[31,140,32,142],[33,106,34,120],[33,121,34,145],[35,121,36,128],[35,106,36,120],[38,130,38,145],[38,106,38,113],[38,114,38,121],[39,106,42,113],[39,114,42,121],[39,38,40,40],[39,41,40,43],[39,44,40,46],[39,47,40,49],[39,50,40,52],[41,83,42,87],[26,1,27,4],[26,5,27,37],[26,38,27,47],[26,48,27,57],[28,1,29,4],[28,5,29,37],[28,38,29,47],[28,48,29,57],[28,58,29,72],[28,73,29,80],[28,81,29,82],[28,83,29,97],[30,1,31,4],[30,5,31,37],[30,38,31,47],[30,48,31,57],[30,58,31,72],[30,73,31,80],[34,68,34,82],[34,83,34,97],[35,38,36,40],[35,50,36,52],[35,53,36,57],[35,58,36,62],[35,63,36,67],[37,38,38,40],[37,41,38,43],[37,44,38,46],[37,47,38,49],[37,50,38,52],[37,53,38,57],[37,58,38,62],[34,53,34,67],[34,38,34,52],[37,63,38,67],[39,68,40,70],[39,71,40,73],[39,74,40,76],[39,77,40,79],[39,80,40,82],[35,93,36,97],[35,88,36,92],[35,83,36,87],[37,83,38,87],[37,88,38,92],[37,93,38,97],[39,83,40,87],[39,88,40,92],[39,93,40,97],[35,80,36,82],[35,77,36,79],[35,74,36,76],[35,71,36,73],[35,68,36,70],[37,68,38,70],[37,71,38,73],[37,74,38,76],[37,77,38,79],[37,80,38,82],[75,58,76,72],[75,73,76,80],[75,81,76,82],[75,83,76,97],[75,1,76,57],[39,53,40,57],[39,58,40,62],[39,63,40,67],[63,81,64,82],[73,5,74,37],[73,38,74,47],[73,48,74,57],[73,58,74,72],[73,73,74,80],[73,81,74,82],[41,79,42,82],[69,1,70,4],[69,5,70,37],[69,38,70,47],[69,48,70,57],[71,1,72,4],[71,5,72,37],[41,88,42,92],[41,93,42,97]]}
[null,"エヌテックサービス株式会社",null,null,null,null,null,null,null,null,null,null,null,null,null,null,null,null,null,null,null,null,null,null,null,null,null,null,null,null,null,null,null,null,null,null,null,null,null,"御中",null,null,null,null,null,null,null,null,null,null,null,null,null,"請求書(外注)"]
[]
[]
[null,"下記のとおり請求致します。",null,null,null,null,null,null,null,null,null,null,null,null,null,null,null,null,null,null,null,null,null,null,null,null,null,null,null,null,null,null,null,null,null,null,null,null,null,null,null,null,null,null,null,null,null,null,null,null,null,null,null,null,"T",null,null,null,null,{"$f":"IF(SUM(入力ﾌｫｰﾑ!BH4:'入力ﾌｫｰﾑ'!CR4)=0,\"\",入力ﾌｫｰﾑ!BH4)","v":""},null,null,{"$f":"IF(SUM(入力ﾌｫｰﾑ!BH4:'入力ﾌｫｰﾑ'!CR4)=0,\"\",入力ﾌｫｰﾑ!BK4)","v":""},null,null,{"$f":"IF(SUM(入力ﾌｫｰﾑ!BH4:'入力ﾌｫｰﾑ'!CR4)=0,\"\",入力ﾌｫｰﾑ!BN4)","v":""},null,null,{"$f":"IF(SUM(入力ﾌｫｰﾑ!BH4:'入力ﾌｫｰﾑ'!CR4)=0,\"\",入力ﾌｫｰﾑ!BQ4)","v":""},null,null,{"$f":"IF(SUM(入力ﾌｫｰﾑ!BH4:'入力ﾌｫｰﾑ'!CR4)=0,\"\",入力ﾌｫｰﾑ!BT4)","v":""},null,null,{"$f":"IF(SUM(入力ﾌｫｰﾑ!BH4:'入力ﾌｫｰﾑ'!CR4)=0,\"\",入力ﾌｫｰﾑ!BW4)","v":""},null,null,{"$f":"IF(SUM(入力ﾌｫｰﾑ!BH4:'入力ﾌｫｰﾑ'!CR4)=0,\"\",入力ﾌｫｰﾑ!BZ4)","v":""},null,null,{"$f":"IF(SUM(入力ﾌｫｰﾑ!BH4:'入力ﾌｫｰﾑ'!CR4)=0,\"\",入力ﾌｫｰﾑ!CC4)","v":""},null,null,{"$f":"IF(SUM(入力ﾌｫｰﾑ!BH4:'入力ﾌｫｰﾑ'!CR4)=0,\"\",入力ﾌｫｰﾑ!CF4)","v":""},null,null,{"$f":"IF(SUM(入力ﾌｫｰﾑ!BH4:'入力ﾌｫｰﾑ'!CR4)=0,\"\",入力ﾌｫｰﾑ!CI4)","v":""},null,null,{"$f":"IF(SUM(入力ﾌｫｰﾑ!BH4:'入力ﾌｫｰﾑ'!CR4)=0,\"\",入力ﾌｫｰﾑ!CL4)","v":""},null,null,{"$f":"IF(SUM(入力ﾌｫｰﾑ!BH4:'入力ﾌｫｰﾑ'!CR4)=0,\"\",入力ﾌｫｰﾑ!CO4)","v":""},null,null,{"$f":"IF(SUM(入力ﾌｫｰﾑ!BH4:'入力ﾌｫｰﾑ'!CR4)=0,\"\",入力ﾌｫｰﾑ!CR4)","v":""},null,null,null,null,"請求日",null,null,null,null,null,{"$f":"入力ﾌｫｰﾑ!DC4","v":0},null,null,null,null,null,null,null,null,null,null,null,"年",null,{"$f":"入力ﾌｫｰﾑ!DQ4","v":0},null,null,null,null,null,"月",null,{"$f":"入力ﾌｫｰﾑ!DY4","v":0},null,null,null,null,null,"日"]
[null,"今回請求金額",null,null,null,null,null,null,null,null,null,null,null,null,null,null,null,{"$f":"IF(入力ﾌｫｰﾑ!$R5<100000000,\"\",(LEFT(RIGHT(\"\"&入力ﾌｫｰﾑ!$R5,9))))","v":""},null,null,null,{"$f":"IF(入力ﾌｫｰﾑ!R5<10000000,\"\",(LEFT(RIGHT(\"\"&入力ﾌｫｰﾑ!$R5,8))))","v":""},null,null,null,{"$f":"IF(入力ﾌｫｰﾑ!$R5<1000000,\"\",(LEFT(RIGHT(\"\"&入力ﾌｫｰﾑ!$R5,7))))","v":""},null,null,null,{"$f":"IF(入力ﾌｫｰﾑ!$R5<100000,\"\",(LEFT(RIGHT(\"\"&入力ﾌｫｰﾑ!$R5,6))))","v":""},null,null,null,{"$f":"IF(入力ﾌｫｰﾑ!$R5<10000,\"\",(LEFT(RIGHT(\"\"&入力ﾌｫｰﾑ!$R5,5))))","v":""},null,null,null,{"$f":"IF(入力ﾌｫｰﾑ!$R5<1000,\"\",(LEFT(RIGHT(\"\"&入力ﾌｫｰﾑ!$R5,4))))","v":""},null,null,null,{"$f":"IF(入力ﾌｫｰﾑ!$R5<100,\"\",(LEFT(RIGHT(\"\"&入力ﾌｫｰﾑ!$R5,3))))","v":""},null,null,null,{"$f":"IF(入力ﾌｫｰﾑ!$R5<10,\"\",(LEFT(RIGHT(\"\"&入力ﾌｫｰﾑ!$R5,2))))","v":""},null,null,null,{"$f":"LEFT(RIGHT(\"\"&入力ﾌｫｰﾑ!$R5,1))","v":""},null,null,null,null,"住所",null,null,null,null,{"$f":"入力ﾌｫｰﾑ!BH5","v":0},null,null,null,null,null,null,null,null,null,null,null,null,null,null,null,null,null,null,null,null,null,null,null,null,null,null,null,null,null,null,null,null,null,null,null,null,null,null,null,null,null,null,null,null,null,null,null,null,null,null,null,null,null,null,null,null,null,null,null,null,null,null,null,null,null,null,null,null,null,null,null,null,null,null,null,null,null,"①提出用"]
[]
[null,"Ｄ当月請求額",null,null,null,null,null,null,null,null,null,null,null,null,null,null,null,{"$f":"IF(入力ﾌｫｰﾑ!$R7<100000000,\"\",(LEFT(RIGHT(\"\"&入力ﾌｫｰﾑ!$R7,9))))","v":""},null,null,null,{"$f":"IF(入力ﾌｫｰﾑ!R7<10000000,\"\",(LEFT(RIGHT(\"\"&入力ﾌｫｰﾑ!$R7,8))))","v":""},null,null,null,{"$f":"IF(入力ﾌｫｰﾑ!$R7<1000000,\"\",(LEFT(RIGHT(\"\"&入力ﾌｫｰﾑ!$R7,7))))","v":""},null,null,null,{"$f":"IF(入力ﾌｫｰﾑ!$R7<100000,\"\",(LEFT(RIGHT(\"\"&入力ﾌｫｰﾑ!$R7,6))))","v":""},null,null,null,{"$f":"IF(入力ﾌｫｰﾑ!$R7<10000,\"\",(LEFT(RIGHT(\"\"&入力ﾌｫｰﾑ!$R7,5))))","v":""},null,null,null,{"$f":"IF(入力ﾌｫｰﾑ!$R7<1000,\"\",(LEFT(RIGHT(\"\"&入力ﾌｫｰﾑ!$R7,4))))","v":""},null,null,null,{"$f":"IF(入力ﾌｫｰﾑ!$R7<100,\"\",(LEFT(RIGHT(\"\"&入力ﾌｫｰﾑ!$R7,3))))","v":""},null,null,null,{"$f":"IF(入力ﾌｫｰﾑ!$R7<10,\"\",(LEFT(RIGHT(\"\"&入力ﾌｫｰﾑ!$R7,2))))","v":""},null,null,null,{"$f":"LEFT(RIGHT(\"\"&入力ﾌｫｰﾑ!$R7,1))","v":""},null,null,null,null,"社名",null,null,null,null,{"$f":"入力ﾌｫｰﾑ!BH7","v":0},null,null,null,null,null,null,null,null,null,null,null,null,null,null,null,null,null,null,null,null,null,null,null,null,null,null,null,null,null,null,null,null,null,null,null,"㊞"]
[null,null,null,null,null,null,null,null,null,null,null,null,null,null,null,null,null,null,null,null,null,null,null,null,null,null,null,null,null,null,null,null,null,null,null,null,null,null,null,null,null,null,null,null,null,null,null,null,null,null,null,null,null,null,null,null,null,null,null,null,null,null,null,null,null,null,null,null,null,null,null,null,null,null,null,null,null,null,null,null,null,null,null,null,null,null,null,null,null,null,null,null,null,null,null,null,null,null,null,null,"工事№",null,null,null,null,null,null,{"$f":"IF(SUM(入力ﾌｫｰﾑ!DD8:'入力ﾌｫｰﾑ'!DV8)=0,\"\",入力ﾌｫｰﾑ!DD8)","v":""},null,null,{"$f":"IF(SUM(入力ﾌｫｰﾑ!DD8:'入力ﾌｫｰﾑ'!DV8)=0,\"\",入力ﾌｫｰﾑ!DG8)","v":""},null,null,{"$f":"IF(SUM(入力ﾌｫｰﾑ!DD8:'入力ﾌｫｰﾑ'!DV8)=0,\"\",入力ﾌｫｰﾑ!DJ8)","v":""},null,null,{"$f":"IF(SUM(入力ﾌｫｰﾑ!DD8:'入力ﾌｫｰﾑ'!DV8)=0,\"\",入力ﾌｫｰﾑ!DM8)","v":""},null,null,{"$f":"IF(SUM(入力ﾌｫｰﾑ!DD8:'入力ﾌｫｰﾑ'!DV8)=0,\"\",入力ﾌｫｰﾑ!DP8)","v":""},null,null,{"$f":"IF(SUM(入力ﾌｫｰﾑ!DD8:'入力ﾌｫｰﾑ'!EV8)=0,\"\",入力ﾌｫｰﾑ!DS8)","v":""},null,null,{"$f":"IF(SUM(入力ﾌｫｰﾑ!DD8:'入力ﾌｫｰﾑ'!DV8)=0,\"\",入力ﾌｫｰﾑ!DV8)","v":""},null,null,"部門"]
[null,"消費税",null,null,null,null,null,null,null,null,null,null,null,null,null,null,null,{"$f":"IF(入力ﾌｫｰﾑ!$R9<100000000,\"\",(LEFT(RIGHT(\"\"&入力ﾌｫｰﾑ!$R9,9))))","v":""},null,null,null,{"$f":"IF(入力ﾌｫｰﾑ!R9<10000000,\"\",(LEFT(RIGHT(\"\"&入力ﾌｫｰﾑ!$R9,8))))","v":""},null,null,null,{"$f":"IF(入力ﾌｫｰﾑ!$R9<1000000,\"\",(LEFT(RIGHT(\"\"&入力ﾌｫｰﾑ!$R9,7))))","v":""},null,null,null,{"$f":"IF(入力ﾌｫｰﾑ!$R9<100000,\"\",(LEFT(RIGHT(\"\"&入力ﾌｫｰﾑ!$R9,6))))","v":""},null,null,null,{"$f":"IF(入力ﾌｫｰﾑ!$R9<10000,\"\",(LEFT(RIGHT(\"\"&入力ﾌｫｰﾑ!$R9,5))))","v":""},null,null,null,{"$f":"IF(入力ﾌｫｰﾑ!$R9<1000,\"\",(LEFT(RIGHT(\"\"&入力ﾌｫｰﾑ!$R9,4))))","v":""},null,null,null,{"$f":"IF(入力ﾌｫｰﾑ!$R9<100,\"\",(LEFT(RIGHT(\"\"&入力ﾌｫｰﾑ!$R9,3))))","v":""},null,null,null,{"$f":"IF(入力ﾌｫｰﾑ!$R9<10,\"\",(LEFT(RIGHT(\"\"&入力ﾌｫｰﾑ!$R9,2))))","v":""},null,null,null,{"$f":"LEFT(RIGHT(\"\"&入力ﾌｫｰﾑ!$R9,1))","v":""},null,null,null,null,"TEL",null,null,null,null,{"$f":"入力ﾌｫｰﾑ!BH9","v":0}]
[null,null,null,null,null,null,null,null,null,null,null,null,null,null,null,null,null,null,null,null,null,null,null,null,null,null,null,null,null,null,null,null,null,null,null,null,null,null,null,null,null,null,null,null,null,null,null,null,null,null,null,null,null,null,null,null,null,null,null,null,null,null,null,null,null,null,null,null,null,null,null,null,null,null,null,null,null,null,null,null,null,null,null,null,null,null,null,null,null,null,null,null,null,null,null,null,null,null,null,null,"取引先コード",null,null,null,null,null,null,null,null,null,null,null,null,null,null,null,null,null,null,null,"注文№",null,null,null,null,null,null,null,null,null,null,null,null,null,null,null,"伝票№"]
[null,"消費税率",null,null,null,null,null,null,null,null,null,null,{"$f":"IF(入力ﾌｫｰﾑ!M11=\"\",\"\",入力ﾌｫｰﾑ!M11)","v":""},null,null,null,null,"工事名称",null,null,null,null,null,null,null,null,null,null,null,null,null,{"$f":"入力ﾌｫｰﾑ!AC11","v":0},null,null,null,null,null,null,null,null,null,null,null,null,null,null,null,null,null,null,null,null,null,null,null,null,null,null,null,null,null,null,null,null,null,null,null,null,null,null,null,null,"ｴﾇﾃｯｸｻｰﾋﾞｽ㈱",null,null,null,null,null,null,null,null,null,null,null,null,{"$f":"入力ﾌｫｰﾑ!CH11","v":0}]
[null,null,null,null,null,null,null,null,null,null,null,null,null,null,null,null,null,null,null,null,null,null,null,null,null,null,null,null,null,null,null,null,null,null,null,null,null,null,null,null,null,null,null,null,null,null,null,null,null,null,null,null,null,null,null,null,null,null,null,null,null,null,null,null,null,null,null,null,null,null,null,null,"現場担当者名",null,null,null,null,null,null,null,null,null,null,null,null,null,null,null,null,null,null,null,null,null,null,null,null,null,null,null,{"$f":"IF(SUM(入力ﾌｫｰﾑ!CW12:'入力ﾌｫｰﾑ'!DM12)=0,\"\",(入力ﾌｫｰﾑ!CW12))","v":""},null,null,null,{"$f":"IF(SUM(入力ﾌｫｰﾑ!CW12:'入力ﾌｫｰﾑ'!DM12)=0,\"\",(入力ﾌｫｰﾑ!DA12))","v":""},null,null,null,{"$f":"IF(SUM(入力ﾌｫｰﾑ!CW12:'入力ﾌｫｰﾑ'!DM12)=0,\"\",(入力ﾌｫｰﾑ!DE12))","v":""},null,null,null,{"$f":"IF(SUM(入力ﾌｫｰﾑ!CW12:'入力ﾌｫｰﾑ'!DM12)=0,\"\",(入力ﾌｫｰﾑ!DI12))","v":""},null,null,null,{"$f":"IF(SUM(入力ﾌｫｰﾑ!CW12:'入力ﾌｫｰﾑ'!DM12)=0,\"\",(入力ﾌｫｰﾑ!DM12))","v":""},null,null,null,{"$f":"IF(SUM(入力ﾌｫｰﾑ!DQ12:'入力ﾌｫｰﾑ'!EC12)=0,\"\",入力ﾌｫｰﾑ!DQ12)","v":""},null,null,null,{"$f":"IF(SUM(入力ﾌｫｰﾑ!DQ12:'入力ﾌｫｰﾑ'!EC12)=0,\"\",入力ﾌｫｰﾑ!DU12)","v":""},null,null,null,{"$f":"IF(SUM(入力ﾌｫｰﾑ!DQ12:'入力ﾌｫｰﾑ'!EC12)=0,\"\",入力ﾌｫｰﾑ!DY12)","v":""},null,null,null,{"$f":"IF(SUM(入力ﾌｫｰﾑ!DQ12:'入力ﾌｫｰﾑ'!EC12)=0,\"\",入力ﾌｫｰﾑ!EC12)","v":""}]
[null,"月日",null,null,null,"工事内容",null,null,null,null,null,null,null,null,null,null,null,null,null,null,null,null,null,null,null,null,null,null,null,null,null,null,null,null,null,null,null,null,"数量",null,null,null,null,null,null,null,null,null,"単価",null,null,null,null,null,null,null,null,null,"金　額",null,null,null,null,null,null,null,null,null,null,null,null,null,null,"出来高",null,null,null,null,null,null,null,null,null,"出来高金額"]
[null,null,null,null,null,null,null,null,null,null,null,null,null,null,null,null,null,null,null,null,null,null,null,null,null,null,null,null,null,null,null,null,null,null,null,null,null,null,null,null,null,null,null,null,null,null,null,null,null,null,null,null,null,null,null,null,null,null,null,null,null,null,null,null,null,null,null,null,null,null,null,null,null,"数量％",null,null,null,null,null,null,null,null,null,null,null,null,null,null,null,null,null,null,null,null,null,null,null,null,null,null,"工事金額",null,null,null,"注文金額",null,null,null,null,null,null,null,null,null,null,{"$f":"IF(入力ﾌｫｰﾑ!DL14=0,\"\",入力ﾌｫｰﾑ!DL14)","v":""}]
[null,{"$f":"入力ﾌｫｰﾑ!B15","v":0},null,null,null,{"$f":"IF(入力ﾌｫｰﾑ!F15=0,\"\",入力ﾌｫｰﾑ!F15)","v":""},null,null,null,null,null,null,null,null,null,null,null,null,null,null,null,null,null,null,null,null,null,null,null,null,null,null,null,null,null,null,null,null,{"$f":"IF(入力ﾌｫｰﾑ!AM15=0,\"\",入力ﾌｫｰﾑ!AM15)","v":""},null,null,null,null,null,null,null,null,null,{"$f":"入力ﾌｫｰﾑ!AW15","v":0},null,null,null,null,null,null,null,null,null,{"$f":"IF(入力ﾌｫｰﾑ!BG15=0,\"\",入力ﾌｫｰﾑ!BG15)","v":""},null,null,null,null,null,null,null,null,null,null,null,null,null,null,{"$f":"IF(入力ﾌｫｰﾑ!BV15=0,\"\",(入力ﾌｫｰﾑ!BV15))","v":""},null,null,null,null,null,null,null,"％",null,{"$f":"IF(入力ﾌｫｰﾑ!CF15=0,\"\",入力ﾌｫｰﾑ!CF15)","v":""}]
[null,null,null,null,null,null,null,null,null,null,null,null,null,null,null,null,null,null,null,null,null,null,null,null,null,null,null,null,null,null,null,null,null,null,null,null,null,null,null,null,null,null,null,null,null,null,null,null,null,null,null,null,null,null,null,null,null,null,null,null,null,null,null,null,null,null,null,null,null,null,null,null,null,null,null,null,null,null,null,null,null,null,null,null,null,null,null,null,null,null,null,null,null,null,null,null,null,null,null,null,null,null,null,null,"変更金額",null,null,null,null,null,null,null,null,null,null,{"$f":"IF(入力ﾌｫｰﾑ!DL16=0,\"\",入力ﾌｫｰﾑ!DL16)","v":""}]
[null,{"$f":"入力ﾌｫｰﾑ!B17","v":0},null,null,null,{"$f":"IF(入力ﾌｫｰﾑ!F17=0,\"\",入力ﾌｫｰﾑ!F17)","v":""},null,null,null,null,null,null,null,null,null,null,null,null,null,null,null,null,null,null,null,null,null,null,null,null,null,null,null,null,null,null,null,null,{"$f":"IF(入力ﾌｫｰﾑ!AM17=0,\"\",入力ﾌｫｰﾑ!AM17)","v":""},null,null,null,null,null,null,null,null,null,{"$f":"入力ﾌｫｰﾑ!AW17","v":0},null,null,null,null,null,null,null,null,null,{"$f":"IF(入力ﾌｫｰﾑ!BG17=0,\"\",入力ﾌｫｰﾑ!BG17)","v":""},null,null,null,null,null,null,null,null,null,null,null,null,null,null,{"$f":"IF(入力ﾌｫｰﾑ!BV17=0,\"\",(入力ﾌｫｰﾑ!BV17))","v":""},null,null,null,null,null,null,null,"％",null,{"$f":"IF(入力ﾌｫｰﾑ!CF17=0,\"\",入力ﾌｫｰﾑ!CF17)","v":""}]
[null,null,null,null,null,null,null,null,null,null,null,null,null,null,null,null,null,null,null,null,null,null,null,null,null,null,null,null,null,null,null,null,null,null,null,null,null,null,null,null,null,null,null,null,null,null,null,null,null,null,null,null,null,null,null,null,null,null,null,null,null,null,null,null,null,null,null,null,null,null,null,null,null,null,null,null,null,null,null,null,null,null,null,null,null,null,null,null,null,null,null,null,null,null,null,null,null,null,null,null,null,null,null,null,"現在金額",null,null,null,null,null,null,null,null,null,null,{"$f":"IF(入力ﾌｫｰﾑ!DL18=0,\"\",入力ﾌｫｰﾑ!DL18)","v":""}]
[null,{"$f":"入力ﾌｫｰﾑ!B19","v":0},null,null,null,{"$f":"IF(入力ﾌｫｰﾑ!F19=0,\"\",入力ﾌｫｰﾑ!F19)","v":""},null,null,null,null,null,null,null,null,null,null,null,null,null,null,null,null,null,null,null,null,null,null,null,null,null,null,null,null,null,null,null,null,{"$f":"IF(入力ﾌｫｰﾑ!AM19=0,\"\",入力ﾌｫｰﾑ!AM19)","v":""},null,null,null,null,null,null,null,null,null,{"$f":"入力ﾌｫｰﾑ!AW19","v":0},null,null,null,null,null,null,null,null,null,{"$f":"IF(入力ﾌｫｰﾑ!BG19=0,\"\",入力ﾌｫｰﾑ!BG19)","v":""},null,null,null,null,null,null,null,null,null,null,null,null,null,null,{"$f":"IF(入力ﾌｫｰﾑ!BV19=0,\"\",(入力ﾌｫｰﾑ!BV19))","v":""},null,null,null,null,null,null,null,"％",null,{"$f":"IF(入力ﾌｫｰﾑ!CF19=0,\"\",入力ﾌｫｰﾑ!CF19)","v":""}]
[null,null,null,null,null,null,null,null,null,null,null,null,null,null,null,null,null,null,null,null,null,null,null,null,null,null,null,null,null,null,null,null,null,null,null,null,null,null,null,null,null,null,null,null,null,null,null,null,null,null,null,null,null,null,null,null,null,null,null,null,null,null,null,null,null,null,null,null,null,null,null,null,null,null,null,null,null,null,null,null,null,null,null,null,null,null,null,null,null,null,null,null,null,null,null,null,null,null,null,null,"Ａ.",null,null,null,"累計\n出来高金額",null,null,null,null,null,null,null,null,null,null,null,null,null,null,null,null,null,null,null,null,null,null,null,null,null,null,null,null,null,"(",{"$f":"IF(入力ﾌｫｰﾑ!EG20=0,\"\",入力ﾌｫｰﾑ!EG20)","v":""},null,null,null,null,null,null,"％",null,")"]
[null,{"$f":"入力ﾌｫｰﾑ!B21","v":0},null,null,null,{"$f":"IF(入力ﾌｫｰﾑ!F21=0,\"\",入力ﾌｫｰﾑ!F21)","v":""},null,null,null,null,null,null,null,null,null,null,null,null,null,null,null,null,null,null,null,null,null,null,null,null,null,null,null,null,null,null,null,null,{"$f":"IF(入力ﾌｫｰﾑ!AM21=0,\"\",入力ﾌｫｰﾑ!AM21)","v":""},null,null,null,null,null,null,null,null,null,{"$f":"入力ﾌｫｰﾑ!AW21","v":0},null,null,null,null,null,null,null,null,null,{"$f":"IF(入力ﾌｫｰﾑ!BG21=0,\"\",入力ﾌｫｰﾑ!BG21)","v":""},null,null,null,null,null,null,null,null,null,null,null,null,null,null,{"$f":"IF(入力ﾌｫｰﾑ!BV21=0,\"\",(入力ﾌｫｰﾑ!BV21))","v":""},null,null,null,null,null,null,null,"％",null,{"$f":"IF(入力ﾌｫｰﾑ!CF21=0,\"\",入力ﾌｫｰﾑ!CF21)","v":""},null,null,null,null,null,null,null,null,null,null,null,null,null,null,null,null,null,null,null,null,null,null,null,null,null,null,null,null,null,null,null,{"$f":"IF(入力ﾌｫｰﾑ!DL21=0,\"\",入力ﾌｫｰﾑ!DL21)","v":""}]
[]
[null,{"$f":"入力ﾌｫｰﾑ!B23","v":0},null,null,null,{"$f":"IF(入力ﾌｫｰﾑ!F23=0,\"\",入力ﾌｫｰﾑ!F23)","v":""},null,null,null,null,null,null,null,null,null,null,null,null,null,null,null,null,null,null,null,null,null,null,null,null,null,null,null,null,null,null,null,null,{"$f":"IF(入力ﾌｫｰﾑ!AM23=0,\"\",入力ﾌｫｰﾑ!AM23)","v":""},null,null,null,null,null,null,null,null,null,{"$f":"入力ﾌｫｰﾑ!AW23","v":0},null,null,null,null,null,null,null,null,null,{"$f":"IF(入力ﾌｫｰﾑ!BG23=0,\"\",入力ﾌｫｰﾑ!BG23)","v":""},null,null,null,null,null,null,null,null,null,null,null,null,null,null,{"$f":"IF(入力ﾌｫｰﾑ!BV23=0,\"\",(入力ﾌｫｰﾑ!BV23))","v":""},null,null,null,null,null,null,null,"％",null,{"$f":"IF(入力ﾌｫｰﾑ!CF23=0,\"\",入力ﾌｫｰﾑ!CF23)","v":""},null,null,null,null,null,null,null,null,null,null,null,null,null,null,null,null,"Ｂ.",null,null,null,"A×90％",null,null,null,null,null,null,null,null,null,null,{"$f":"IF(入力ﾌｫｰﾑ!DL23=0,\"\",入力ﾌｫｰﾑ!DL23)","v":""}]
[]
[null,{"$f":"入力ﾌｫｰﾑ!B25","v":0},null,null,null,{"$f":"IF(入力ﾌｫｰﾑ!F25=0,\"\",入力ﾌｫｰﾑ!F25)","v":""},null,null,null,null,null,null,null,null,null,null,null,null,null,null,null,null,null,null,null,null,null,null,null,null,null,null,null,null,null,null,null,null,{"$f":"IF(入力ﾌｫｰﾑ!AM25=0,\"\",入力ﾌｫｰﾑ!AM25)","v":""},null,null,null,null,null,null,null,null,null,{"$f":"入力ﾌｫｰﾑ!AW25","v":0},null,null,null,null,null,null,null,null,null,{"$f":"IF(入力ﾌｫｰﾑ!BG25=0,\"\",入力ﾌｫｰﾑ!BG25)","v":""},null,null,null,null,null,null,null,null,null,null,null,null,null,null,{"$f":"IF(入力ﾌｫｰﾑ!BV25=0,\"\",(入力ﾌｫｰﾑ!BV25))","v":""},null,null,null,null,null,null,null,"％",null,{"$f":"IF(入力ﾌｫｰﾑ!CF25=0,\"\",入力ﾌｫｰﾑ!CF25)","v":""},null,null,null,null,null,null,null,null,null,null,null,null,null,null,null,null,"Ｃ.",null,null,null,"既受入金額",null,null,null,null,null,null,null,null,null,null,"△",null,{"$f":"IF(入力ﾌｫｰﾑ!DN25=0,\"\",入力ﾌｫｰﾑ!DN25)","v":""}]
[]
[null,{"$f":"入力ﾌｫｰﾑ!B27","v":0},null,null,null,{"$f":"IF(入力ﾌｫｰﾑ!F27=0,\"\",入力ﾌｫｰﾑ!F27)","v":""},null,null,null,null,null,null,null,null,null,null,null,null,null,null,null,null,null,null,null,null,null,null,null,null,null,null,null,null,null,null,null,null,{"$f":"IF(入力ﾌｫｰﾑ!AM27=0,\"\",入力ﾌｫｰﾑ!AM27)","v":""},null,null,null,null,null,null,null,null,null,{"$f":"入力ﾌｫｰﾑ!AW27","v":0},null,null,null,null,null,null,null,null,null,{"$f":"IF(入力ﾌｫｰﾑ!BG27=0,\"\",入力ﾌｫｰﾑ!BG27)","v":""},null,null,null,null,null,null,null,null,null,null,null,null,null,null,{"$f":"IF(入力ﾌｫｰﾑ!BV27=0,\"\",(入力ﾌｫｰﾑ!BV27))","v":""},null,null,null,null,null,null,null,"％",null,{"$f":"IF(入力ﾌｫｰﾑ!CF27=0,\"\",入力ﾌｫｰﾑ!CF27)","v":""},null,null,null,null,null,null,null,null,null,null,null,null,null,null,null,null,"Ｄ.",null,null,null,"当月請求額",null,null,null,null,null,null,null,null,null,null,{"$f":"IF(入力ﾌｫｰﾑ!DL27=0,\"\",入力ﾌｫｰﾑ!DL27)","v":""}]
[]
[null,{"$f":"入力ﾌｫｰﾑ!B29","v":0},null,null,null,{"$f":"IF(入力ﾌｫｰﾑ!F29=0,\"\",入力ﾌｫｰﾑ!F29)","v":""},null,null,null,null,null,null,null,null,null,null,null,null,null,null,null,null,null,null,null,null,null,null,null,null,null,null,null,null,null,null,null,null,{"$f":"IF(入力ﾌｫｰﾑ!AM29=0,\"\",入力ﾌｫｰﾑ!AM29)","v":""},null,null,null,null,null,null,null,null,null,{"$f":"入力ﾌｫｰﾑ!AW29","v":0},null,null,null,null,null,null,null,null,null,{"$f":"IF(入力ﾌｫｰﾑ!BG29=0,\"\",入力ﾌｫｰﾑ!BG29)","v":""},null,null,null,null,null,null,null,null,null,null,null,null,null,null,{"$f":"IF(入力ﾌｫｰﾑ!BV29=0,\"\",(入力ﾌｫｰﾑ!BV29))","v":""},null,null,null,null,null,null,null,"％",null,{"$f":"IF(入力ﾌｫｰﾑ!CF29=0,\"\",入力ﾌｫｰﾑ!CF29)","v":""}]
[null,null,null,null,null,null,null,null,null,null,null,null,null,null,null,null,null,null,null,null,null,null,null,null,null,null,null,null,null,null,null,null,null,null,null,null,null,null,null,null,null,null,null,null,null,null,null,null,null,null,null,null,null,null,null,null,null,null,null,null,null,null,null,null,null,null,null,null,null,null,null,null,null,null,null,null,null,null,null,null,null,null,null,null,null,null,null,null,null,null,null,null,null,null,null,null,null,null,null,null,null,null,null,null,null,null,"勘定科目コード",null,null,null,null,null,null,null,null,null,null,null,null,null,null,null,null,null,null,null,null,null,null,null,null,"工種コード"]
[null,{"$f":"入力ﾌｫｰﾑ!B31","v":0},null,null,null,{"$f":"IF(入力ﾌｫｰﾑ!F31=0,\"\",入力ﾌｫｰﾑ!F31)","v":""},null,null,null,null,null,null,null,null,null,null,null,null,null,null,null,null,null,null,null,null,null,null,null,null,null,null,null,null,null,null,null,null,{"$f":"IF(入力ﾌｫｰﾑ!AM31=0,\"\",入力ﾌｫｰﾑ!AM31)","v":""},null,null,null,null,null,null,null,null,null,{"$f":"入力ﾌｫｰﾑ!AW31","v":0},null,null,null,null,null,null,null,null,null,{"$f":"IF(入力ﾌｫｰﾑ!BG31=0,\"\",入力ﾌｫｰﾑ!BG31)","v":""},null,null,null,null,null,null,null,null,null,null,null,null,null,null,{"$f":"IF(入力ﾌｫｰﾑ!BV31=0,\"\",(入力ﾌｫｰﾑ!BV31))","v":""},null,null,null,null,null,null,null,"％",null,{"$f":"IF(入力ﾌｫｰﾑ!CF31=0,\"\",入力ﾌｫｰﾑ!CF31)","v":""}]
[null,null,null,null,null,null,null,null,null,null,null,null,null,null,null,null,null,null,null,null,null,null,null,null,null,null,null,null,null,null,null,null,null,null,null,null,null,null,null,null,null,null,null,null,null,null,null,null,null,null,null,null,null,null,null,null,null,null,null,null,null,null,null,null,null,null,null,null,null,null,null,null,null,null,null,null,null,null,null,null,null,null,null,null,null,null,null,null,null,null,null,null,null,null,null,null,null,null,null,null,null,null,null,null,null,null,4030]
[null,"計",null,null,null,null,null,null,null,null,null,null,null,null,null,null,null,null,null,null,null,null,null,null,null,null,null,null,null,null,null,null,null,null,null,null,null,null,null,null,null,null,null,null,null,null,null,null,null,null,null,null,null,null,null,null,null,null,{"$f":"IF(入力ﾌｫｰﾑ!BG33=0,\"\",入力ﾌｫｰﾑ!BG33)","v":""},null,null,null,null,null,null,null,null,null,null,null,null,null,null,{"$f":"IF(入力ﾌｫｰﾑ!BV33=0,\"\",(入力ﾌｫｰﾑ!BV33))","v":""},null,null,null,null,null,null,null,"％",null,{"$f":"IF(入力ﾌｫｰﾑ!CF33=0,\"\",入力ﾌｫｰﾑ!CF33)","v":""}]
[null,null,null,null,null,null,null,null,null,null,null,null,null,null,null,null,null,null,null,null,null,null,null,null,null,null,null,null,null,null,null,null,null,null,null,null,null,null,null,null,null,null,null,null,null,null,null,null,null,null,null,null,null,null,null,null,null,null,null,null,null,null,null,null,null,null,null,null,null,null,null,null,null,null,null,null,null,null,null,null,null,null,null,null,null,null,null,null,null,null,null,null,null,null,null,null,null,null,null,null,null,null,null,null,null,null,"査　定　日",null,null,null,null,null,null,null,null,null,null,null,null,null,null,"月　　　　日"]
[null,"備考",null,null,null,null,null,null,null,null,null,null,null,null,null,null,null,null,null,null,null,null,null,null,null,null,null,null,null,null,null,null,null,null,null,null,null,null,"工種コード",null,null,null,null,null,null,null,null,null,null,null,null,null,null,"金額",null,null,null,null,null,null,null,null,null,null,null,null,null,null,"工種コード",null,null,null,null,null,null,null,null,null,null,null,null,null,null,"金額"]
[null,null,null,null,null,null,null,null,null,null,null,null,null,null,null,null,null,null,null,null,null,null,null,null,null,null,null,null,null,null,null,null,null,null,null,null,null,null,null,null,null,null,null,null,null,null,null,null,null,null,null,null,null,null,null,null,null,null,null,null,null,null,null,null,null,null,null,null,null,null,null,null,null,null,null,null,null,null,null,null,null,null,null,null,null,null,null,null,null,null,null,null,null,null,null,null,null,null,null,null,null,null,null,null,null,null,"立替金・支給材等控除",null,null,null,null,null,null,null,null,null,null,null,null,null,null,"無・有",null,null,null,null,null,null,null,"(",null,null,null,null,null,null,null,null,null,null,null,null,null,")"]
[]
[]
[null,null,null,null,null,null,null,null,null,null,null,null,null,null,null,null,null,null,null,null,null,null,null,null,null,null,null,null,null,null,null,null,null,null,null,null,null,null,null,null,null,null,null,null,null,null,null,null,null,null,null,null,null,null,null,null,null,null,null,null,null,null,null,null,null,null,null,null,null,null,null,null,null,null,null,null,null,null,null,null,null,null,null,null,null,null,null,null,null,null,null,null,null,null,null,null,null,null,null,null,null,null,null,null,null,null,"社　長",null,null,null,null,null,null,null,"部　長",null,null,null,null,null,null,null,"課　長",null,null,null,null,null,null,null,"係長・主任・担当者"]
[]
[]
[null,null,null,null,null,null,null,null,null,null,null,null,null,null,null,null,null,null,null,null,null,null,null,null,null,null,null,null,null,null,null,null,null,null,null,null,null,null,null,null,null,null,null,null,null,null,null,null,null,null,null,null,null,null,null,null,null,null,null,null,null,null,null,null,null,null,null,null,null,null,null,null,null,null,null,null,null,null,null,"合計\n金額"]
[]
[null,"エヌテックサービス株式会社",null,null,null,null,null,null,null,null,null,null,null,null,null,null,null,null,null,null,null,null,null,null,null,null,null,null,null,null,null,null,null,null,null,null,null,null,null,"御中",null,null,null,null,null,null,null,null,null,null,null,null,null,null,"請 求 書 (外注)"]
[]
[]
[null,"下記のとおり請求致します。",null,null,null,null,null,null,null,null,null,null,null,null,null,null,null,null,null,null,null,null,null,null,null,null,null,null,null,null,null,null,null,null,null,null,null,null,null,null,null,null,null,null,null,null,null,null,null,null,null,null,null,null,"T",null,null,null,null,{"$f":"IF(SUM(入力ﾌｫｰﾑ!BH4:'入力ﾌｫｰﾑ'!CR4)=0,\"\",入力ﾌｫｰﾑ!BH4)","v":""},null,null,{"$f":"IF(SUM(入力ﾌｫｰﾑ!BH4:'入力ﾌｫｰﾑ'!CR4)=0,\"\",入力ﾌｫｰﾑ!BK4)","v":""},null,null,{"$f":"IF(SUM(入力ﾌｫｰﾑ!BH4:'入力ﾌｫｰﾑ'!CR4)=0,\"\",入力ﾌｫｰﾑ!BN4)","v":""},null,null,{"$f":"IF(SUM(入力ﾌｫｰﾑ!BH4:'入力ﾌｫｰﾑ'!CR4)=0,\"\",入力ﾌｫｰﾑ!BQ4)","v":""},null,null,{"$f":"IF(SUM(入力ﾌｫｰﾑ!BH4:'入力ﾌｫｰﾑ'!CR4)=0,\"\",入力ﾌｫｰﾑ!BT4)","v":""},null,null,{"$f":"IF(SUM(入力ﾌｫｰﾑ!BH4:'入力ﾌｫｰﾑ'!CR4)=0,\"\",入力ﾌｫｰﾑ!BW4)","v":""},null,null,{"$f":"IF(SUM(入力ﾌｫｰﾑ!BH4:'入力ﾌｫｰﾑ'!CR4)=0,\"\",入力ﾌｫｰﾑ!BZ4)","v":""},null,null,{"$f":"IF(SUM(入力ﾌｫｰﾑ!BH4:'入力ﾌｫｰﾑ'!CR4)=0,\"\",入力ﾌｫｰﾑ!CC4)","v":""},null,null,{"$f":"IF(SUM(入力ﾌｫｰﾑ!BH4:'入力ﾌｫｰﾑ'!CR4)=0,\"\",入力ﾌｫｰﾑ!CF4)","v":""},null,null,{"$f":"IF(SUM(入力ﾌｫｰﾑ!BH4:'入力ﾌｫｰﾑ'!CR4)=0,\"\",入力ﾌｫｰﾑ!CI4)","v":""},null,null,{"$f":"IF(SUM(入力ﾌｫｰﾑ!BH4:'入力ﾌｫｰﾑ'!CR4)=0,\"\",入力ﾌｫｰﾑ!CL4)","v":""},null,null,{"$f":"IF(SUM(入力ﾌｫｰﾑ!BH4:'入力ﾌｫｰﾑ'!CR4)=0,\"\",入力ﾌｫｰﾑ!CO4)","v":""},null,null,{"$f":"IF(SUM(入力ﾌｫｰﾑ!BH4:'入力ﾌｫｰﾑ'!CR4)=0,\"\",入力ﾌｫｰﾑ!CR4)","v":""},null,null,null,null,"請求日",null,null,null,null,null,{"$f":"入力ﾌｫｰﾑ!DC4","v":0},null,null,null,null,null,null,null,null,null,null,null,"年",null,{"$f":"入力ﾌｫｰﾑ!DQ4","v":0},null,null,null,null,null,"月",null,{"$f":"入力ﾌｫｰﾑ!DY4","v":0},null,null,null,null,null,"日"]
[null,"今回請求金額",null,null,null,null,null,null,null,null,null,null,null,null,null,null,null,{"$f":"IF(入力ﾌｫｰﾑ!$R5<100000000,\"\",(LEFT(RIGHT(\"\"&入力ﾌｫｰﾑ!$R5,9))))","v":""},null,null,null,{"$f":"IF(入力ﾌｫｰﾑ!R5<10000000,\"\",(LEFT(RIGHT(\"\"&入力ﾌｫｰﾑ!$R5,8))))","v":""},null,null,null,{"$f":"IF(入力ﾌｫｰﾑ!$R5<1000000,\"\",(LEFT(RIGHT(\"\"&入力ﾌｫｰﾑ!$R5,7))))","v":""},null,null,null,{"$f":"IF(入力ﾌｫｰﾑ!$R5<100000,\"\",(LEFT(RIGHT(\"\"&入力ﾌｫｰﾑ!$R5,6))))","v":""},null,null,null,{"$f":"IF(入力ﾌｫｰﾑ!$R5<10000,\"\",(LEFT(RIGHT(\"\"&入力ﾌｫｰﾑ!$R5,5))))","v":""},null,null,null,{"$f":"IF(入力ﾌｫｰﾑ!$R5<1000,\"\",(LEFT(RIGHT(\"\"&入力ﾌｫｰﾑ!$R5,4))))","v":""},null,null,null,{"$f":"IF(入力ﾌｫｰﾑ!$R5<100,\"\",(LEFT(RIGHT(\"\"&入力ﾌｫｰﾑ!$R5,3))))","v":""},null,null,null,{"$f":"IF(入力ﾌｫｰﾑ!$R5<10,\"\",(LEFT(RIGHT(\"\"&入力ﾌｫｰﾑ!$R5,2))))","v":""},null,null,null,{"$f":"LEFT(RIGHT(\"\"&入力ﾌｫｰﾑ!$R5,1))","v":""},null,null,null,null,"住所",null,null,null,null,{"$f":"入力ﾌｫｰﾑ!BH5","v":0},null,null,null,null,null,null,null,null,null,null,null,null,null,null,null,null,null,null,null,null,null,null,null,null,null,null,null,null,null,null,null,null,null,null,null,null,null,null,null,null,null,null,null,null,null,null,null,null,null,null,null,null,null,null,null,null,null,null,null,null,null,null,null,null,null,null,null,null,null,null,null,null,null,null,null,null,null,"②取引先控"]
[]
[null,"Ｄ当月請求額",null,null,null,null,null,null,null,null,null,null,null,null,null,null,null,{"$f":"IF(入力ﾌｫｰﾑ!$R7<100000000,\"\",(LEFT(RIGHT(\"\"&入力ﾌｫｰﾑ!$R7,9))))","v":""},null,null,null,{"$f":"IF(入力ﾌｫｰﾑ!R7<10000000,\"\",(LEFT(RIGHT(\"\"&入力ﾌｫｰﾑ!$R7,8))))","v":""},null,null,null,{"$f":"IF(入力ﾌｫｰﾑ!$R7<1000000,\"\",(LEFT(RIGHT(\"\"&入力ﾌｫｰﾑ!$R7,7))))","v":""},null,null,null,{"$f":"IF(入力ﾌｫｰﾑ!$R7<100000,\"\",(LEFT(RIGHT(\"\"&入力ﾌｫｰﾑ!$R7,6))))","v":""},null,null,null,{"$f":"IF(入力ﾌｫｰﾑ!$R7<10000,\"\",(LEFT(RIGHT(\"\"&入力ﾌｫｰﾑ!$R7,5))))","v":""},null,null,null,{"$f":"IF(入力ﾌｫｰﾑ!$R7<1000,\"\",(LEFT(RIGHT(\"\"&入力ﾌｫｰﾑ!$R7,4))))","v":""},null,null,null,{"$f":"IF(入力ﾌｫｰﾑ!$R7<100,\"\",(LEFT(RIGHT(\"\"&入力ﾌｫｰﾑ!$R7,3))))","v":""},null,null,null,{"$f":"IF(入力ﾌｫｰﾑ!$R7<10,\"\",(LEFT(RIGHT(\"\"&入力ﾌｫｰﾑ!$R7,2))))","v":""},null,null,null,{"$f":"LEFT(RIGHT(\"\"&入力ﾌｫｰﾑ!$R7,1))","v":""},null,null,null,null,"社名",null,null,null,null,{"$f":"入力ﾌｫｰﾑ!BH7","v":0}]
[null,null,null,null,null,null,null,null,null,null,null,null,null,null,null,null,null,null,null,null,null,null,null,null,null,null,null,null,null,null,null,null,null,null,null,null,null,null,null,null,null,null,null,null,null,null,null,null,null,null,null,null,null,null,null,null,null,null,null,null,null,null,null,null,null,null,null,null,null,null,null,null,null,null,null,null,null,null,null,null,null,null,null,null,null,null,null,null,null,null,null,null,null,null,null,null,null,null,null,null,"工事№",null,null,null,null,null,null,{"$f":"IF(SUM(入力ﾌｫｰﾑ!DD8:'入力ﾌｫｰﾑ'!DV8)=0,\"\",入力ﾌｫｰﾑ!DD8)","v":""},null,null,{"$f":"IF(SUM(入力ﾌｫｰﾑ!DD8:'入力ﾌｫｰﾑ'!DV8)=0,\"\",入力ﾌｫｰﾑ!DG8)","v":""},null,null,{"$f":"IF(SUM(入力ﾌｫｰﾑ!DD8:'入力ﾌｫｰﾑ'!DV8)=0,\"\",入力ﾌｫｰﾑ!DJ8)","v":""},null,null,{"$f":"IF(SUM(入力ﾌｫｰﾑ!DD8:'入力ﾌｫｰﾑ'!DV8)=0,\"\",入力ﾌｫｰﾑ!DM8)","v":""},null,null,{"$f":"IF(SUM(入力ﾌｫｰﾑ!DD8:'入力ﾌｫｰﾑ'!DV8)=0,\"\",入力ﾌｫｰﾑ!DP8)","v":""},null,null,{"$f":"IF(SUM(入力ﾌｫｰﾑ!DD8:'入力ﾌｫｰﾑ'!EV8)=0,\"\",入力ﾌｫｰﾑ!DS8)","v":""},null,null,{"$f":"IF(SUM(入力ﾌｫｰﾑ!DD8:'入力ﾌｫｰﾑ'!DV8)=0,\"\",入力ﾌｫｰﾑ!DV8)","v":""}]
[null,"消費税",null,null,null,null,null,null,null,null,null,null,null,null,null,null,null,{"$f":"IF(入力ﾌｫｰﾑ!$R9<100000000,\"\",(LEFT(RIGHT(\"\"&入力ﾌｫｰﾑ!$R9,9))))","v":""},null,null,null,{"$f":"IF(入力ﾌｫｰﾑ!R9<10000000,\"\",(LEFT(RIGHT(\"\"&入力ﾌｫｰﾑ!$R9,8))))","v":""},null,null,null,{"$f":"IF(入力ﾌｫｰﾑ!$R9<1000000,\"\",(LEFT(RIGHT(\"\"&入力ﾌｫｰﾑ!$R9,7))))","v":""},null,null,null,{"$f":"IF(入力ﾌｫｰﾑ!$R9<100000,\"\",(LEFT(RIGHT(\"\"&入力ﾌｫｰﾑ!$R9,6))))","v":""},null,null,null,{"$f":"IF(入力ﾌｫｰﾑ!$R9<10000,\"\",(LEFT(RIGHT(\"\"&入力ﾌｫｰﾑ!$R9,5))))","v":""},null,null,null,{"$f":"IF(入力ﾌｫｰﾑ!$R9<1000,\"\",(LEFT(RIGHT(\"\"&入力ﾌｫｰﾑ!$R9,4))))","v":""},null,null,null,{"$f":"IF(入力ﾌｫｰﾑ!$R9<100,\"\",(LEFT(RIGHT(\"\"&入力ﾌｫｰﾑ!$R9,3))))","v":""},null,null,null,{"$f":"IF(入力ﾌｫｰﾑ!$R9<10,\"\",(LEFT(RIGHT(\"\"&入力ﾌｫｰﾑ!$R9,2))))","v":""},null,null,null,{"$f":"LEFT(RIGHT(\"\"&入力ﾌｫｰﾑ!$R9,1))","v":""},null,null,null,null,"TEL",null,null,null,null,{"$f":"入力ﾌｫｰﾑ!BH9","v":0}]
[null,null,null,null,null,null,null,null,null,null,null,null,null,null,null,null,null,null,null,null,null,null,null,null,null,null,null,null,null,null,null,null,null,null,null,null,null,null,null,null,null,null,null,null,null,null,null,null,null,null,null,null,null,null,null,null,null,null,null,null,null,null,null,null,null,null,null,null,null,null,null,null,null,null,null,null,null,null,null,null,null,null,null,null,null,null,null,null,null,null,null,null,null,null,null,null,null,null,null,null,"取引先コード",null,null,null,null,null,null,null,null,null,null,null,null,null,null,null,null,null,null,null,"注文№"]
[null,"消費税率",null,null,null,null,null,null,null,null,null,null,{"$f":"IF(入力ﾌｫｰﾑ!M11=0,\"\",入力ﾌｫｰﾑ!M11)","v":""},null,null,null,null,"工事名称",null,null,null,null,null,null,null,null,null,null,null,null,null,{"$f":"入力ﾌｫｰﾑ!AC11","v":0},null,null,null,null,null,null,null,null,null,null,null,null,null,null,null,null,null,null,null,null,null,null,null,null,null,null,null,null,null,null,null,null,null,null,null,null,null,null,null,null,"ｴﾇﾃｯｸｻｰﾋﾞｽ㈱",null,null,null,null,null,null,null,null,null,null,null,null,{"$f":"入力ﾌｫｰﾑ!CH11","v":0}]
[null,null,null,null,null,null,null,null,null,null,null,null,null,null,null,null,null,null,null,null,null,null,null,null,null,null,null,null,null,null,null,null,null,null,null,null,null,null,null,null,null,null,null,null,null,null,null,null,null,null,null,null,null,null,null,null,null,null,null,null,null,null,null,null,null,null,null,null,null,null,null,null,"現場担当者名",null,null,null,null,null,null,null,null,null,null,null,null,null,null,null,null,null,null,null,null,null,null,null,null,null,null,null,{"$f":"IF(SUM(入力ﾌｫｰﾑ!CW12:'入力ﾌｫｰﾑ'!DM12)=0,\"\",(入力ﾌｫｰﾑ!CW12))","v":""},null,null,null,{"$f":"IF(SUM(入力ﾌｫｰﾑ!CW12:'入力ﾌｫｰﾑ'!DM12)=0,\"\",(入力ﾌｫｰﾑ!DA12))","v":""},null,null,null,{"$f":"IF(SUM(入力ﾌｫｰﾑ!CW12:'入力ﾌｫｰﾑ'!DM12)=0,\"\",(入力ﾌｫｰﾑ!DE12))","v":""},null,null,null,{"$f":"IF(SUM(入力ﾌｫｰﾑ!CW12:'入力ﾌｫｰﾑ'!DM12)=0,\"\",(入力ﾌｫｰﾑ!DI12))","v":""},null,null,null,{"$f":"IF(SUM(入力ﾌｫｰﾑ!CW12:'入力ﾌｫｰﾑ'!DM12)=0,\"\",(入力ﾌｫｰﾑ!DM12))","v":""},null,null,null,{"$f":"IF(SUM(入力ﾌｫｰﾑ!DQ12:'入力ﾌｫｰﾑ'!EC12)=0,\"\",入力ﾌｫｰﾑ!DQ12)","v":""},null,null,null,{"$f":"IF(SUM(入力ﾌｫｰﾑ!DQ12:'入力ﾌｫｰﾑ'!EC12)=0,\"\",入力ﾌｫｰﾑ!DU12)","v":""},null,null,null,{"$f":"IF(SUM(入力ﾌｫｰﾑ!DQ12:'入力ﾌｫｰﾑ'!EC12)=0,\"\",入力ﾌｫｰﾑ!DY12)","v":""},null,null,null,{"$f":"IF(SUM(入力ﾌｫｰﾑ!DQ12:'入力ﾌｫｰﾑ'!EC12)=0,\"\",入力ﾌｫｰﾑ!EC12)","v":""}]
[null,"月日",null,null,null,"工事内容",null,null,null,null,null,null,null,null,null,null,null,null,null,null,null,null,null,null,null,null,null,null,null,null,null,null,null,null,null,null,null,null,"数量",null,null,null,null,null,null,null,null,null,"単価",null,null,null,null,null,null,null,null,null,"金　額",null,null,null,null,null,null,null,null,null,null,null,null,null,null,"出来高",null,null,null,null,null,null,null,null,null,"出来高金額"]
[null,null,null,null,null,null,null,null,null,null,null,null,null,null,null,null,null,null,null,null,null,null,null,null,null,null,null,null,null,null,null,null,null,null,null,null,null,null,null,null,null,null,null,null,null,null,null,null,null,null,null,null,null,null,null,null,null,null,null,null,null,null,null,null,null,null,null,null,null,null,null,null,null,"数量％",null,null,null,null,null,null,null,null,null,null,null,null,null,null,null,null,null,null,null,null,null,null,null,null,null,null,"工事金額",null,null,null,"注文金額",null,null,null,null,null,null,null,null,null,null,{"$f":"IF(入力ﾌｫｰﾑ!DL14=0,\"\",入力ﾌｫｰﾑ!DL14)","v":""}]
[null,{"$f":"入力ﾌｫｰﾑ!B15","v":0},null,null,null,{"$f":"IF(入力ﾌｫｰﾑ!F15=0,\"\",入力ﾌｫｰﾑ!F15)","v":""},null,null,null,null,null,null,null,null,null,null,null,null,null,null,null,null,null,null,null,null,null,null,null,null,null,null,null,null,null,null,null,null,{"$f":"IF(入力ﾌｫｰﾑ!AM15=0,\"\",入力ﾌｫｰﾑ!AM15)","v":""},null,null,null,null,null,null,null,null,null,{"$f":"入力ﾌｫｰﾑ!AW15","v":0},null,null,null,null,null,null,null,null,null,{"$f":"IF(入力ﾌｫｰﾑ!BG15=0,\"\",入力ﾌｫｰﾑ!BG15)","v":""},null,null,null,null,null,null,null,null,null,null,null,null,null,null,{"$f":"IF(入力ﾌｫｰﾑ!BV15=0,\"\",(入力ﾌｫｰﾑ!BV15))","v":""},null,null,null,null,null,null,null,"％",null,{"$f":"IF(入力ﾌｫｰﾑ!CF15=0,\"\",入力ﾌｫｰﾑ!CF15)","v":""}]
[null,null,null,null,null,null,null,null,null,null,null,null,null,null,null,null,null,null,null,null,null,null,null,null,null,null,null,null,null,null,null,null,null,null,null,null,null,null,null,null,null,null,null,null,null,null,null,null,null,null,null,null,null,null,null,null,null,null,null,null,null,null,null,null,null,null,null,null,null,null,null,null,null,null,null,null,null,null,null,null,null,null,null,null,null,null,null,null,null,null,null,null,null,null,null,null,null,null,null,null,null,null,null,null,"変更金額",null,null,null,null,null,null,null,null,null,null,{"$f":"IF(入力ﾌｫｰﾑ!DL16=0,\"\",入力ﾌｫｰﾑ!DL16)","v":""}]
[null,{"$f":"入力ﾌｫｰﾑ!B17","v":0},null,null,null,{"$f":"IF(入力ﾌｫｰﾑ!F17=0,\"\",入力ﾌｫｰﾑ!F17)","v":""},null,null,null,null,null,null,null,null,null,null,null,null,null,null,null,null,null,null,null,null,null,null,null,null,null,null,null,null,null,null,null,null,{"$f":"IF(入力ﾌｫｰﾑ!AM17=0,\"\",入力ﾌｫｰﾑ!AM17)","v":""},null,null,null,null,null,null,null,null,null,{"$f":"入力ﾌｫｰﾑ!AW17","v":0},null,null,null,null,null,null,null,null,null,{"$f":"IF(入力ﾌｫｰﾑ!BG17=0,\"\",入力ﾌｫｰﾑ!BG17)","v":""},null,null,null,null,null,null,null,null,null,null,null,null,null,null,{"$f":"IF(入力ﾌｫｰﾑ!BV17=0,\"\",(入力ﾌｫｰﾑ!BV17))","v":""},null,null,null,null,null,null,null,"％",null,{"$f":"IF(入力ﾌｫｰﾑ!CF17=0,\"\",入力ﾌｫｰﾑ!CF17)","v":""}]
[null,null,null,null,null,null,null,null,null,null,null,null,null,null,null,null,null,null,null,null,null,null,null,null,null,null,null,null,null,null,null,null,null,null,null,null,null,null,null,null,null,null,null,null,null,null,null,null,null,null,null,null,null,null,null,null,null,null,null,null,null,null,null,null,null,null,null,null,null,null,null,null,null,null,null,null,null,null,null,null,null,null,null,null,null,null,null,null,null,null,null,null,null,null,null,null,null,null,null,null,null,null,null,null,"現在金額",null,null,null,null,null,null,null,null,null,null,{"$f":"IF(入力ﾌｫｰﾑ!DL18=0,\"\",入力ﾌｫｰﾑ!DL18)","v":""}]
[null,{"$f":"入力ﾌｫｰﾑ!B19","v":0},null,null,null,{"$f":"IF(入力ﾌｫｰﾑ!F19=0,\"\",入力ﾌｫｰﾑ!F19)","v":""},null,null,null,null,null,null,null,null,null,null,null,null,null,null,null,null,null,null,null,null,null,null,null,null,null,null,null,null,null,null,null,null,{"$f":"IF(入力ﾌｫｰﾑ!AM19=0,\"\",入力ﾌｫｰﾑ!AM19)","v":""},null,null,null,null,null,null,null,null,null,{"$f":"入力ﾌｫｰﾑ!AW19","v":0},null,null,null,null,null,null,null,null,null,{"$f":"IF(入力ﾌｫｰﾑ!BG19=0,\"\",入力ﾌｫｰﾑ!BG19)","v":""},null,null,null,null,null,null,null,null,null,null,null,null,null,null,{"$f":"IF(入力ﾌｫｰﾑ!BV19=0,\"\",(入力ﾌｫｰﾑ!BV19))","v":""},null,null,null,null,null,null,null,"％",null,{"$f":"IF(入力ﾌｫｰﾑ!CF19=0,\"\",入力ﾌｫｰﾑ!CF19)","v":""}]
[null,null,null,null,null,null,null,null,null,null,null,null,null,null,null,null,null,null,null,null,null,null,null,null,null,null,null,null,null,null,null,null,null,null,null,null,null,null,null,null,null,null,null,null,null,null,null,null,null,null,null,null,null,null,null,null,null,null,null,null,null,null,null,null,null,null,null,null,null,null,null,null,null,null,null,null,null,null,null,null,null,null,null,null,null,null,null,null,null,null,null,null,null,null,null,null,null,null,null,null,"Ａ.",null,null,null,"累計\n出来高金額",null,null,null,null,null,null,null,null,null,null,null,null,null,null,null,null,null,null,null,null,null,null,null,null,null,null,null,null,null,"(",{"$f":"IF(入力ﾌｫｰﾑ!EG20=0,\"\",入力ﾌｫｰﾑ!EG20)","v":""},null,null,null,null,null,null,"％",null,")"]
[null,{"$f":"入力ﾌｫｰﾑ!B21","v":0},null,null,null,{"$f":"IF(入力ﾌｫｰﾑ!F21=0,\"\",入力ﾌｫｰﾑ!F21)","v":""},null,null,null,null,null,null,null,null,null,null,null,null,null,null,null,null,null,null,null,null,null,null,null,null,null,null,null,null,null,null,null,null,{"$f":"IF(入力ﾌｫｰﾑ!AM21=0,\"\",入力ﾌｫｰﾑ!AM21)","v":""},null,null,null,null,null,null,null,null,null,{"$f":"入力ﾌｫｰﾑ!AW21","v":0},null,null,null,null,null,null,null,null,null,{"$f":"IF(入力ﾌｫｰﾑ!BG21=0,\"\",入力ﾌｫｰﾑ!BG21)","v":""},null,null,null,null,null,null,null,null,null,null,null,null,null,null,{"$f":"IF(入力ﾌｫｰﾑ!BV21=0,\"\",(入力ﾌｫｰﾑ!BV21))","v":""},null,null,null,null,null,null,null,"％",null,{"$f":"IF(入力ﾌｫｰﾑ!CF21=0,\"\",入力ﾌｫｰﾑ!CF21)","v":""},null,null,null,null,null,null,null,null,null,null,null,null,null,null,null,null,null,null,null,null,null,null,null,null,null,null,null,null,null,null,null,{"$f":"IF(入力ﾌｫｰﾑ!DL21=0,\"\",入力ﾌｫｰﾑ!DL21)","v":""}]
[]
[null,{"$f":"入力ﾌｫｰﾑ!B23","v":0},null,null,null,{"$f":"IF(入力ﾌｫｰﾑ!F23=0,\"\",入力ﾌｫｰﾑ!F23)","v":""},null,null,null,null,null,null,null,null,null,null,null,null,null,null,null,null,null,null,null,null,null,null,null,null,null,null,null,null,null,null,null,null,{"$f":"IF(入力ﾌｫｰﾑ!AM23=0,\"\",入力ﾌｫｰﾑ!AM23)","v":""},null,null,null,null,null,null,null,null,null,{"$f":"入力ﾌｫｰﾑ!AW23","v":0},null,null,null,null,null,null,null,null,null,{"$f":"IF(入力ﾌｫｰﾑ!BG23=0,\"\",入力ﾌｫｰﾑ!BG23)","v":""},null,null,null,null,null,null,null,null,null,null,null,null,null,null,{"$f":"IF(入力ﾌｫｰﾑ!BV23=0,\"\",(入力ﾌｫｰﾑ!BV23))","v":""},null,null,null,null,null,null,null,"％",null,{"$f":"IF(入力ﾌｫｰﾑ!CF23=0,\"\",入力ﾌｫｰﾑ!CF23)","v":""},null,null,null,null,null,null,null,null,null,null,null,null,null,null,null,null,"Ｂ.",null,null,null,"A×90％",null,null,null,null,null,null,null,null,null,null,{"$f":"IF(入力ﾌｫｰﾑ!DL23=0,\"\",入力ﾌｫｰﾑ!DL23)","v":""}]
[]
[null,{"$f":"入力ﾌｫｰﾑ!B25","v":0},null,null,null,{"$f":"IF(入力ﾌｫｰﾑ!F25=0,\"\",入力ﾌｫｰﾑ!F25)","v":""},null,null,null,null,null,null,null,null,null,null,null,null,null,null,null,null,null,null,null,null,null,null,null,null,null,null,null,null,null,null,null,null,{"$f":"IF(入力ﾌｫｰﾑ!AM25=0,\"\",入力ﾌｫｰﾑ!AM25)","v":""},null,null,null,null,null,null,null,null,null,{"$f":"入力ﾌｫｰﾑ!AW25","v":0},null,null,null,null,null,null,null,null,null,{"$f":"IF(入力ﾌｫｰﾑ!BG25=0,\"\",入力ﾌｫｰﾑ!BG25)","v":""},null,null,null,null,null,null,null,null,null,null,null,null,null,null,{"$f":"IF(入力ﾌｫｰﾑ!BV25=0,\"\",(入力ﾌｫｰﾑ!BV25))","v":""},null,null,null,null,null,null,null,"％",null,{"$f":"IF(入力ﾌｫｰﾑ!CF25=0,\"\",入力ﾌｫｰﾑ!CF25)","v":""},null,null,null,null,null,null,null,null,null,null,null,null,null,null,null,null,"Ｃ.",null,null,null,"既受入金額",null,null,null,null,null,null,null,null,null,null,"△",null,{"$f":"IF(入力ﾌｫｰﾑ!DN25=0,\"\",入力ﾌｫｰﾑ!DN25)","v":""}]
[]
[null,{"$f":"入力ﾌｫｰﾑ!B27","v":0},null,null,null,{"$f":"IF(入力ﾌｫｰﾑ!F27=0,\"\",入力ﾌｫｰﾑ!F27)","v":""},null,null,null,null,null,null,null,null,null,null,null,null,null,null,null,null,null,null,null,null,null,null,null,null,null,null,null,null,null,null,null,null,{"$f":"IF(入力ﾌｫｰﾑ!AM27=0,\"\",入力ﾌｫｰﾑ!AM27)","v":""},null,null,null,null,null,null,null,null,null,{"$f":"入力ﾌｫｰﾑ!AW27","v":0},null,null,null,null,null,null,null,null,null,{"$f":"IF(入力ﾌｫｰﾑ!BG27=0,\"\",入力ﾌｫｰﾑ!BG27)","v":""},null,null,null,null,null,null,null,null,null,null,null,null,null,null,{"$f":"IF(入力ﾌｫｰﾑ!BV27=0,\"\",(入力ﾌｫｰﾑ!BV27))","v":""},null,null,null,null,null,null,null,"％",null,{"$f":"IF(入力ﾌｫｰﾑ!CF27=0,\"\",入力ﾌｫｰﾑ!CF27)","v":""},null,null,null,null,null,null,null,null,null,null,null,null,null,null,null,null,"Ｄ.",null,null,null,"当月請求額",null,null,null,null,null,null,null,null,null,null,{"$f":"IF(入力ﾌｫｰﾑ!DL27=0,\"\",入力ﾌｫｰﾑ!DL27)","v":""}]
[]
[null,{"$f":"入力ﾌｫｰﾑ!B29","v":0},null,null,null,{"$f":"IF(入力ﾌｫｰﾑ!F29=0,\"\",入力ﾌｫｰﾑ!F29)","v":""},null,null,null,null,null,null,null,null,null,null,null,null,null,null,null,null,null,null,null,null,null,null,null,null,null,null,null,null,null,null,null,null,{"$f":"IF(入力ﾌｫｰﾑ!AM29=0,\"\",入力ﾌｫｰﾑ!AM29)","v":""},null,null,null,null,null,null,null,null,null,{"$f":"入力ﾌｫｰﾑ!AW29","v":0},null,null,null,null,null,null,null,null,null,{"$f":"IF(入力ﾌｫｰﾑ!BG29=0,\"\",入力ﾌｫｰﾑ!BG29)","v":""},null,null,null,null,null,null,null,null,null,null,null,null,null,null,{"$f":"IF(入力ﾌｫｰﾑ!BV29=0,\"\",(入力ﾌｫｰﾑ!BV29))","v":""},null,null,null,null,null,null,null,"％",null,{"$f":"IF(入力ﾌｫｰﾑ!CF29=0,\"\",入力ﾌｫｰﾑ!CF29)","v":""}]
[]
[null,{"$f":"入力ﾌｫｰﾑ!B31","v":0},null,null,null,{"$f":"IF(入力ﾌｫｰﾑ!F31=0,\"\",入力ﾌｫｰﾑ!F31)","v":""},null,null,null,null,null,null,null,null,null,null,null,null,null,null,null,null,null,null,null,null,null,null,null,null,null,null,null,null,null,null,null,null,{"$f":"IF(入力ﾌｫｰﾑ!AM31=0,\"\",入力ﾌｫｰﾑ!AM31)","v":""},null,null,null,null,null,null,null,null,null,{"$f":"入力ﾌｫｰﾑ!AW31","v":0},null,null,null,null,null,null,null,null,null,{"$f":"IF(入力ﾌｫｰﾑ!BG31=0,\"\",入力ﾌｫｰﾑ!BG31)","v":""},null,null,null,null,null,null,null,null,null,null,null,null,null,null,{"$f":"IF(入力ﾌｫｰﾑ!BV31=0,\"\",(入力ﾌｫｰﾑ!BV31))","v":""},null,null,null,null,null,null,null,"％",null,{"$f":"IF(入力ﾌｫｰﾑ!CF31=0,\"\",入力ﾌｫｰﾑ!CF31)","v":""}]
[]
[null,{"$f":"入力ﾌｫｰﾑ!B33","v":"計"},null,null,null,null,null,null,null,null,null,null,null,null,null,null,null,null,null,null,null,null,null,null,null,null,null,null,null,null,null,null,null,null,null,null,null,null,null,null,null,null,null,null,null,null,null,null,null,null,null,null,null,null,null,null,null,null,{"$f":"IF(入力ﾌｫｰﾑ!BG33=0,\"\",入力ﾌｫｰﾑ!BG33)","v":""},null,null,null,null,null,null,null,null,null,null,null,null,null,null,{"$f":"IF(入力ﾌｫｰﾑ!BV33=0,\"\",(入力ﾌｫｰﾑ!BV33))","v":""},null,null,null,null,null,null,null,"％",null,{"$f":"IF(入力ﾌｫｰﾑ!CF33=0,\"\",入力ﾌｫｰﾑ!CF33)","v":""}]
[]
[null,"請求書の記入について",null,null,null,null,null,null,null,null,null,null,null,null,null,null,null,null,null,null,null,null,"ご不明な点は、弊社担当者とお打ち合わせの上、入力又は記入してください。"]
[null,"1.",null,"この請求書は工事ごとに、注文書別に記入して提出してください。(工事№・工事名は注文書を参照、又は弊社担当者へお問い合わせください。)"]
[null,"2.",null,"毎月、月末締めにて翌月第3営業日までに、弊社事務所または現場担当者へ提出してください。提出が遅れた場合は、次月のお支払いとなります。"]
[null,null,null,"(郵送の場合も同様にてお願いします。)"]
[null,"3.",null,"請求書は、電子入力または手書きとし、原本1部を弊社に提出してください。(①提出用での提出をお願いします。)"]
[null,"4.",null,"工事内容他、入力フォームの白欄は記入をお願いします。不明瞭な箇所がある場合は支払の保留、又は請求書の再提出をお願いする場合があります。"]
[null,null,null,"なお、注文№は、請求対象について注文書を受領している場合のみ記入してください。"]
[null,"5.",null,"手書きの場合、黒ボールペンを使用し枠内からはみ出さないよう鮮明に記入してください。熱で消えるタイプのボールペンは使用しないでください。"]
[null,"6.",null,"当月請求金額、出来高金額、工事金額等は税抜金額で記入し、消費税額を計算し消費税欄に記入してください。消費税額の円未満は切り捨てにて計算してください。"]
[null,"7.",null,"中間払い時は、累計出来高金額×90％、1,000円未満切り捨てにて計算してください。"]
[null,"8.",null,"出来高内訳書(弊社書式)は、2部添付してください。尚、未契約の小工事は、工事内訳を工事内容欄に記入してください。"]

{"sheet":"マニュアル","index":2,"n_rows":45,"n_cols":145,"rows_kept":45,"cut":false,"hidden":false,"merged":[[26,100,27,103],[26,104,27,114],[26,115,27,144],[26,145,27,145],[26,58,27,72],[26,73,27,80],[26,81,27,82],[26,83,27,97],[26,1,27,4],[26,5,27,37],[26,38,27,47],[26,48,27,57],[32,83,33,97],[28,81,29,82],[28,83,29,97],[30,1,31,4],[30,5,31,37],[30,38,31,47],[30,48,31,57],[30,58,31,72],[30,73,31,80],[30,81,31,82],[30,83,31,97],[28,1,29,4],[28,5,29,37],[28,38,29,47],[28,48,29,57],[28,58,29,72],[28,73,29,80],[32,1,33,57],[32,58,33,72],[32,73,33,80],[32,81,33,82],[22,145,23,145],[24,1,25,4],[24,5,25,37],[24,38,25,47],[24,48,25,57],[24,58,25,72],[24,73,25,80],[24,81,25,82],[24,83,25,97],[24,100,25,103],[22,73,23,80],[22,81,23,82],[22,83,23,97],[22,100,23,103],[22,104,23,114],[22,115,23,144],[24,104,25,114],[24,115,25,116],[24,117,25,144],[24,145,25,145],[22,1,23,4],[22,5,23,37],[22,38,23,47],[22,48,23,57],[22,58,23,72],[19,100,21,103],[19,104,21,114],[19,115,19,134],[19,136,19,141],[20,1,21,4],[20,5,21,37],[20,38,21,47],[20,48,21,57],[20,58,21,72],[18,1,19,4],[18,5,19,37],[18,38,19,47],[18,48,19,57],[18,58,19,72],[18,73,19,80],[18,81,19,82],[20,73,21,80],[20,81,21,82],[20,83,21,97],[20,115,21,144],[17,115,18,144],[20,145,21,145],[19,142,19,143],[16,1,17,4],[16,5,17,37],[16,38,17,47],[16,48,17,57],[16,58,17,72],[16,73,17,80],[16,81,17,82],[16,83,17,97],[17,104,18,114],[13,100,18,103],[13,104,14,114],[14,81,15,82],[18,83,19,97],[14,1,15,4],[14,5,15,37],[14,38,15,47],[14,48,15,57],[14,58,15,72],[14,83,15,97],[15,104,16,114],[15,115,16,144],[14,73,15,80],[17,145,18,145],[9,136,10,145],[10,72,10,84],[10,85,11,97],[11,72,11,84],[11,100,12,103],[11,104,12,107],[11,108,12,111],[11,112,12,115],[13,73,13,82],[13,115,14,144],[13,145,14,145],[11,128,12,131],[11,132,12,135],[11,136,12,145],[15,145,16,145],[11,124,12,127],[12,83,13,97],[12,1,13,4],[12,5,13,37],[12,38,13,47],[12,48,13,57],[12,58,13,72],[12,73,12,82],[11,116,12,119],[11,120,12,123],[7,125,8,127],[8,1,9,16],[8,17,9,52],[8,54,9,58],[8,59,9,97],[9,100,10,119],[9,120,10,135],[7,107,8,109],[7,110,8,112],[7,113,8,115],[7,116,8,118],[7,119,8,121],[7,122,8,124],[6,1,7,16],[6,17,7,52],[6,54,7,58],[6,59,7,94],[6,95,7,97],[7,100,8,106],[10,1,11,11],[10,12,11,16],[10,17,11,27],[10,28,11,71],[3,126,4,127],[3,128,4,133],[3,134,4,135],[4,1,5,16],[4,17,5,52],[4,54,5,58],[4,59,5,97],[3,92,3,94],[3,95,3,97],[3,100,4,105],[3,106,4,117],[3,118,4,119],[3,120,4,125],[3,74,3,76],[3,77,3,79],[3,80,3,82],[3,83,3,85],[3,86,3,88],[3,89,3,91],[0,1,1,37],[0,39,1,42],[0,53,1,97],[3,1,3,37],[3,54,3,58],[3,59,3,61],[3,62,3,64],[3,65,3,67],[3,68,3,70],[3,71,3,73]]}
[null,"エヌテックサービス株式会社",null,null,null,null,null,null,null,null,null,null,null,null,null,null,null,null,null,null,null,null,null,null,null,null,null,null,null,null,null,null,null,null,null,null,null,null,null,"御中",null,null,null,null,null,null,null,null,null,null,null,null,null,"請求書(外注)"]
[]
[]
[null,"下記のとおり請求致します。",null,null,null,null,null,null,null,null,null,null,null,null,null,null,null,null,null,null,null,null,null,null,null,null,null,null,null,null,null,null,null,null,null,null,null,null,null,null,null,null,null,null,null,null,null,null,null,null,null,null,null,null,"T",null,null,null,null,1,null,null,2,null,null,3,null,null,4,null,null,5,null,null,6,null,null,7,null,null,8,null,null,9,null,null,0,null,null,1,null,null,2,null,null,3,null,null,null,null,"請求日\n(西暦)",null,null,null,null,null,2022,null,null,null,null,null,null,null,null,null,null,null,"年",null,6,null,null,null,null,null,"月",null,30,null,null,null,null,null,"日"]
[null,"今回請求金額",null,null,null,null,null,null,null,null,null,null,null,null,null,null,null,{"$f":"IFERROR(R7+R9,\"\")","v":12012000},null,null,null,null,null,null,null,null,null,null,null,null,null,null,null,null,null,null,null,null,null,null,null,null,null,null,null,null,null,null,null,null,null,null,null,null,"住所",null,null,null,null,"浜松市中区住吉五丁目26番36号"]
[]
[null,"Ｄ当月請求額",null,null,null,null,null,null,null,null,null,null,null,null,null,null,null,{"$f":"IF(DL27=0,\"\",DL27)","v":10920000},null,null,null,null,null,null,null,null,null,null,null,null,null,null,null,null,null,null,null,null,null,null,null,null,null,null,null,null,null,null,null,null,null,null,null,null,"社名",null,null,null,null,"エヌテックサービス株式会社"]
[null,null,null,null,null,null,null,null,null,null,null,null,null,null,null,null,null,null,null,null,null,null,null,null,null,null,null,null,null,null,null,null,null,null,null,null,null,null,null,null,null,null,null,null,null,null,null,null,null,null,null,null,null,null,null,null,null,null,null,null,null,null,null,null,null,null,null,null,null,null,null,null,null,null,null,null,null,null,null,null,null,null,null,null,null,null,null,null,null,null,null,null,null,null,null,null,null,null,null,null,"工事№",null,null,null,null,null,null,2,null,null,0,null,null,2,null,null,5,null,null,0,null,null,0,null,null,1]
[null,"消費税",null,null,null,null,null,null,null,null,null,null,null,null,null,null,null,{"$f":"IFERROR(ROUNDDOWN(R7*10%,0),\"\")","v":1092000},null,null,null,null,null,null,null,null,null,null,null,null,null,null,null,null,null,null,null,null,null,null,null,null,null,null,null,null,null,null,null,null,null,null,null,null,"TEL",null,null,null,null,"053-412-0251"]
[null,null,null,null,null,null,null,null,null,null,null,null,null,null,null,null,null,null,null,null,null,null,null,null,null,null,null,null,null,null,null,null,null,null,null,null,null,null,null,null,null,null,null,null,null,null,null,null,null,null,null,null,null,null,null,null,null,null,null,null,null,null,null,null,null,null,null,null,null,null,null,null,null,null,null,null,null,null,null,null,null,null,null,null,null,null,null,null,null,null,null,null,null,null,null,null,null,null,null,null,"取引先コード",null,null,null,null,null,null,null,null,null,null,null,null,null,null,null,null,null,null,null,"注文№",null,null,null,null,null,null,null,null,null,null,null,null,null,null,null,"伝票№"]
[null,"消費税率",null,null,null,null,null,null,null,null,null,null,0.1,null,null,null,null,"工事名称",null,null,null,null,null,null,null,null,null,null,"(夢)山下様　別荘新築工事",null,null,null,null,null,null,null,null,null,null,null,null,null,null,null,null,null,null,null,null,null,null,null,null,null,null,null,null,null,null,null,null,null,null,null,null,null,null,null,null,null,null,null,"ｴﾇﾃｯｸｻｰﾋﾞｽ㈱",null,null,null,null,null,null,null,null,null,null,null,null,"池谷"]
[null,null,null,null,null,null,null,null,null,null,null,null,null,null,null,null,null,null,null,null,null,null,null,null,null,null,null,null,null,null,null,null,null,null,null,null,null,null,null,null,null,null,null,null,null,null,null,null,null,null,null,null,null,null,null,null,null,null,null,null,null,null,null,null,null,null,null,null,null,null,null,null,"現場担当者名",null,null,null,null,null,null,null,null,null,null,null,null,null,null,null,null,null,null,null,null,null,null,null,null,null,null,null,null,null,null,null,null,null,null,null,null,null,null,null,null,null,null,null,1,null,null,null,null,null,null,null,1,null,null,null,0,null,null,null,1]
[null,"月日",null,null,null,"工事内容",null,null,null,null,null,null,null,null,null,null,null,null,null,null,null,null,null,null,null,null,null,null,null,null,null,null,null,null,null,null,null,null,"数量",null,null,null,null,null,null,null,null,null,"単価",null,null,null,null,null,null,null,null,null,"金　額",null,null,null,null,null,null,null,null,null,null,null,null,null,null,"出来高",null,null,null,null,null,null,null,null,null,"出来高金額"]
[null,null,null,null,null,null,null,null,null,null,null,null,null,null,null,null,null,null,null,null,null,null,null,null,null,null,null,null,null,null,null,null,null,null,null,null,null,null,null,null,null,null,null,null,null,null,null,null,null,null,null,null,null,null,null,null,null,null,null,null,null,null,null,null,null,null,null,null,null,null,null,null,null,"数量％",null,null,null,null,null,null,null,null,null,null,null,null,null,null,null,null,null,null,null,null,null,null,null,null,null,null,"工事金額",null,null,null,"注文金額",null,null,null,null,null,null,null,null,null,null,30000000]
[null,"6/10",null,null,null,"基礎工事",null,null,null,null,null,null,null,null,null,null,null,null,null,null,null,null,null,null,null,null,null,null,null,null,null,null,null,null,null,null,null,null,"1式",null,null,null,null,null,null,null,null,null,null,null,null,null,null,null,null,null,null,null,25000000,null,null,null,null,null,null,null,null,null,null,null,null,null,null,48.5,null,null,null,null,null,null,null,"％",null,12125000]
[null,null,null,null,null,null,null,null,null,null,null,null,null,null,null,null,null,null,null,null,null,null,null,null,null,null,null,null,null,null,null,null,null,null,null,null,null,null,null,null,null,null,null,null,null,null,null,null,null,null,null,null,null,null,null,null,null,null,null,null,null,null,null,null,null,null,null,null,null,null,null,null,null,null,null,null,null,null,null,null,null,null,null,null,null,null,null,null,null,null,null,null,null,null,null,null,null,null,null,null,null,null,null,null,"変更金額"]
[null,"6/15",null,null,null,"コンクリート工事",null,null,null,null,null,null,null,null,null,null,null,null,null,null,null,null,null,null,null,null,null,null,null,null,null,null,null,null,null,null,null,null,"500m2",null,null,null,null,null,null,null,null,null,10000,null,null,null,null,null,null,null,null,null,5000000,null,null,null,null,null,null,null,null,null,null,null,null,null,null,7,null,null,null,null,null,null,null,"％",null,350000]
[null,null,null,null,null,null,null,null,null,null,null,null,null,null,null,null,null,null,null,null,null,null,null,null,null,null,null,null,null,null,null,null,null,null,null,null,null,null,null,null,null,null,null,null,null,null,null,null,null,null,null,null,null,null,null,null,null,null,null,null,null,null,null,null,null,null,null,null,null,null,null,null,null,null,null,null,null,null,null,null,null,null,null,null,null,null,null,null,null,null,null,null,null,null,null,null,null,null,null,null,null,null,null,null,"現在金額",null,null,null,null,null,null,null,null,null,null,30000000]
[null,null,null,null,null,null,null,null,null,null,null,null,null,null,null,null,null,null,null,null,null,null,null,null,null,null,null,null,null,null,null,null,null,null,null,null,null,null,null,null,null,null,null,null,null,null,null,null,null,null,null,null,null,null,null,null,null,null,null,null,null,null,null,null,null,null,null,null,null,null,null,null,null,null,null,null,null,null,null,null,null,"％"]
[null,null,null,null,null,null,null,null,null,null,null,null,null,null,null,null,null,null,null,null,null,null,null,null,null,null,null,null,null,null,null,null,null,null,null,null,null,null,null,null,null,null,null,null,null,null,null,null,null,null,null,null,null,null,null,null,null,null,null,null,null,null,null,null,null,null,null,null,null,null,null,null,null,null,null,null,null,null,null,null,null,null,null,null,null,null,null,null,null,null,null,null,null,null,null,null,null,null,null,null,"Ａ.",null,null,null,"累計\n出来高金額",null,null,null,null,null,null,null,null,null,null,null,null,null,null,null,null,null,null,null,null,null,null,null,null,null,null,null,null,null,null,"(",{"$f":"BV33","v":41.583333333333336},null,null,null,null,null,"％",null,")"]
[null,null,null,null,null,null,null,null,null,null,null,null,null,null,null,null,null,null,null,null,null,null,null,null,null,null,null,null,null,null,null,null,null,null,null,null,null,null,null,null,null,null,null,null,null,null,null,null,null,null,null,null,null,null,null,null,null,null,null,null,null,null,null,null,null,null,null,null,null,null,null,null,null,null,null,null,null,null,null,null,null,"％",null,null,null,null,null,null,null,null,null,null,null,null,null,null,null,null,null,null,null,null,null,null,null,null,null,null,null,null,null,null,null,null,null,{"$f":"CF33","v":12475000}]
[]
[null,null,null,null,null,null,null,null,null,null,null,null,null,null,null,null,null,null,null,null,null,null,null,null,null,null,null,null,null,null,null,null,null,null,null,null,null,null,null,null,null,null,null,null,null,null,null,null,null,null,null,null,null,null,null,null,null,null,null,null,null,null,null,null,null,null,null,null,null,null,null,null,null,null,null,null,null,null,null,null,null,"％",null,null,null,null,null,null,null,null,null,null,null,null,null,null,null,null,null,null,"Ｂ.",null,null,null,"A×90％",null,null,null,null,null,null,null,null,null,null,{"$f":"IFERROR(IF(BV33=0,\"\",(IF(BV33>0,ROUNDDOWN(CF33*90%,-4),IF(BV33=100,\"\")))),\"\")","v":11220000}]
[]
[null,null,null,null,null,null,null,null,null,null,null,null,null,null,null,null,null,null,null,null,null,null,null,null,null,null,null,null,null,null,null,null,null,null,null,null,null,null,null,null,null,null,null,null,null,null,null,null,null,null,null,null,null,null,null,null,null,null,null,null,null,null,null,null,null,null,null,null,null,null,null,null,null,null,null,null,null,null,null,null,null,"％",null,null,null,null,null,null,null,null,null,null,null,null,null,null,null,null,null,null,"Ｃ.",null,null,null,"既受入金額",null,null,null,null,null,null,null,null,null,null,"△",null,300000]
[]
[null,null,null,null,null,null,null,null,null,null,null,null,null,null,null,null,null,null,null,null,null,null,null,null,null,null,null,null,null,null,null,null,null,null,null,null,null,null,null,null,null,null,null,null,null,null,null,null,null,null,null,null,null,null,null,null,null,null,null,null,null,null,null,null,null,null,null,null,null,null,null,null,null,null,null,null,null,null,null,null,null,"％",null,null,null,null,null,null,null,null,null,null,null,null,null,null,null,null,null,null,"Ｄ.",null,null,null,"当月請求額",null,null,null,null,null,null,null,null,null,null,10920000]
[]
[null,null,null,null,null,null,null,null,null,null,null,null,null,null,null,null,null,null,null,null,null,null,null,null,null,null,null,null,null,null,null,null,null,null,null,null,null,null,null,null,null,null,null,null,null,null,null,null,null,null,null,null,null,null,null,null,null,null,null,null,null,null,null,null,null,null,null,null,null,null,null,null,null,null,null,null,null,null,null,null,null,"％"]
[]
[null,null,null,null,null,null,null,null,null,null,null,null,null,null,null,null,null,null,null,null,null,null,null,null,null,null,null,null,null,null,null,null,null,null,null,null,null,null,null,null,null,null,null,null,null,null,null,null,null,null,null,null,null,null,null,null,null,null,null,null,null,null,null,null,null,null,null,null,null,null,null,null,null,null,null,null,null,null,null,null,null,"％"]
[]
[null,"計",null,null,null,null,null,null,null,null,null,null,null,null,null,null,null,null,null,null,null,null,null,null,null,null,null,null,null,null,null,null,null,null,null,null,null,null,null,null,null,null,null,null,null,null,null,null,null,null,null,null,null,null,null,null,null,null,{"$f":"IF(SUM(BG15:BG31)=0,\"\",SUM(BG15:BG31))","v":30000000},null,null,null,null,null,null,null,null,null,null,null,null,null,null,{"$f":"IFERROR((CF33/BG33*100),\"\")","v":41.583333333333336},null,null,null,null,null,null,null,"％",null,{"$f":"IF(SUM(CF15:CF31)=0,\"\",SUM(CF15:CF31))","v":12475000}]
[]
[null,"請求書の記入について",null,null,null,null,null,null,null,null,null,null,null,null,null,null,null,null,null,null,null,null,"ご不明な点は、弊社担当者とお打ち合わせの上、入力又は記入してください。"]
[null,"1.",null,"この請求書は工事ごとに、注文書別に記入して提出してください。(工事№・工事名は注文書を参照、又は弊社担当者へお問い合わせください。)"]
[null,"2.",null,"毎月、月末締めにて翌月第3営業日までに、弊社事務所または現場担当者へ提出してください。提出が遅れた場合は、次月のお支払いとなります。"]
[null,null,null,"(郵送の場合も同様にてお願いします。)"]
[null,"3.",null,"請求書は、電子入力または手書きとし、原本1部を弊社に提出してください。(①提出用での提出をお願いします。)"]
[null,"4.",null,"工事内容他、入力フォームの白欄は記入をお願いします。不明瞭な箇所がある場合は支払の保留、又は請求書の再提出をお願いする場合があります。"]
[null,null,null,"なお、注文№は、請求対象について注文書を受領している場合のみ記入してください。"]
[null,"5.",null,"手書きの場合、黒ボールペンを使用し枠内からはみ出さないよう鮮明に記入してください。熱で消えるタイプのボールペンは使用しないでください。"]
[null,"6.",null,"当月請求金額、出来高金額、工事金額等は税抜金額で記入し、消費税額を計算し消費税欄に記入してください。消費税額の円未満は切り捨てにて計算してください。"]
[null,"7.",null,"中間払い時は、累計出来高金額×90％、1,000円未満切り捨てにて記入してください。"]
[null,"8.",null,"出来高内訳書(弊社書式)は、2部添付してください。尚、未契約の小工事は、工事内訳を工事内容欄に入力又は記入してください。"]